Publisher Label,Publisher URI,"Supplier","Net Amount (£)","Organisational Unit","Merchant Category Code","Purpose","Payment Date"
"Wolverhampton City Council","http://opendatacommunities.org/id/metropolitan-district-council/wolverhampton","Amazon UK Marketplace","9.99","Education Business Partnership","5942","Equipment - Purchase","28/04/2017"
"Wolverhampton City Council","http://opendatacommunities.org/id/metropolitan-district-council/wolverhampton","Amazon EU","21.23","Education Business Partnership","5969","Equipment - Purchase","28/04/2017"
"Wolverhampton City Council","http://opendatacommunities.org/id/metropolitan-district-council/wolverhampton","Amazon UK Marketplace","0.82","Education Business Partnership","5942","Books","28/04/2017"
"Wolverhampton City Council","http://opendatacommunities.org/id/metropolitan-district-council/wolverhampton","Amazon UK Marketplace","1.90","Education Business Partnership","5942","Books","28/04/2017"
"Wolverhampton City Council","http://opendatacommunities.org/id/metropolitan-district-council/wolverhampton","NOTEMACHINE","100.00","Childrens with Disabilities Team","6011","No Recourse to Public Funds","28/04/2017"
"Wolverhampton City Council","http://opendatacommunities.org/id/metropolitan-district-council/wolverhampton","NOTEMACHINE","250.00","Childrens with Disabilities Team","6011","No Recourse to Public Funds","28/04/2017"
"Wolverhampton City Council","http://opendatacommunities.org/id/metropolitan-district-council/wolverhampton","ONE WEIGH UK","150.00","Admin & Support","5072","Equipment - Purchase","28/04/2017"
"Wolverhampton City Council","http://opendatacommunities.org/id/metropolitan-district-council/wolverhampton","POST OFFICE COUNTER","65.00","EIP Locality 8","9402","Comms - Postage","28/04/2017"
"Wolverhampton City Council","http://opendatacommunities.org/id/metropolitan-district-council/wolverhampton","ENVATOMARKET34611561","8.04","City Direct","5815","Computing - Purchase of Software","28/04/2017"
"Wolverhampton City Council","http://opendatacommunities.org/id/metropolitan-district-council/wolverhampton","WWW.LQM.CO.UK","132.00","Central Training","5969","Training Expenses","28/04/2017"
"Wolverhampton City Council","http://opendatacommunities.org/id/metropolitan-district-council/wolverhampton","ASDA SUPERSTORE","20.27","Mayoral Expenses","5411","Hospitality","28/04/2017"
"Wolverhampton City Council","http://opendatacommunities.org/id/metropolitan-district-council/wolverhampton","SNACKS AND SWEETS","23.00","Mayoral Expenses","5814","Hospitality","28/04/2017"
"Wolverhampton City Council","http://opendatacommunities.org/id/metropolitan-district-council/wolverhampton","Virgin Trains","9.00","Fostering Team & Allowances","4112","Public Transport","28/04/2017"
"Wolverhampton City Council","http://opendatacommunities.org/id/metropolitan-district-council/wolverhampton","ASDA GEORGE COM LEEDS","15.95","EIP Locality 5","5411","Financial Assistance In Exceptional Circ","28/04/2017"
"Wolverhampton City Council","http://opendatacommunities.org/id/metropolitan-district-council/wolverhampton","WWW.WMCA.CO.UK","1155.66","Planning","4112","Public Transport","28/04/2017"
"Wolverhampton City Council","http://opendatacommunities.org/id/metropolitan-district-council/wolverhampton","WEST COAST TRAINS","21.25","Assessment Team (East)","4112","Public Transport","28/04/2017"
"Wolverhampton City Council","http://opendatacommunities.org/id/metropolitan-district-council/wolverhampton","WWW.ICO.GOV.UK","35.00","Members Expenses","9399","Subscriptions","28/04/2017"
"Wolverhampton City Council","http://opendatacommunities.org/id/metropolitan-district-council/wolverhampton","WWW.ICO.GOV.UK","35.00","Members Expenses","9399","Subscriptions","28/04/2017"
"Wolverhampton City Council","http://opendatacommunities.org/id/metropolitan-district-council/wolverhampton","WEBSTAFF/ATP PAYMENTS","37.10","LAC Transitions Team","9399","Client Allowances","28/04/2017"
"Wolverhampton City Council","http://opendatacommunities.org/id/metropolitan-district-council/wolverhampton","Trainline","28.31","Public Health - Healthier Places Team","4112","Public Transport","28/04/2017"
"Wolverhampton City Council","http://opendatacommunities.org/id/metropolitan-district-council/wolverhampton","WWW.ICO.GOV.UK","35.00","Members Expenses","9399","Subscriptions","28/04/2017"
"Wolverhampton City Council","http://opendatacommunities.org/id/metropolitan-district-council/wolverhampton","WWW.ICO.GOV.UK","35.00","Members Expenses","9399","Subscriptions","28/04/2017"
"Wolverhampton City Council","http://opendatacommunities.org/id/metropolitan-district-council/wolverhampton","WWW.ICO.GOV.UK","35.00","Members Expenses","9399","Subscriptions","28/04/2017"
"Wolverhampton City Council","http://opendatacommunities.org/id/metropolitan-district-council/wolverhampton","THE ISLAND HOUSE","46.90","Headstart Phase 3","5812","Subsistence","28/04/2017"
"Wolverhampton City Council","http://opendatacommunities.org/id/metropolitan-district-council/wolverhampton","AMAZON UK RETAIL AMAZO","33.58","Strategic ICTS (ICT Serv Budget)","5999","Equipment - Purchase","28/04/2017"
"Wolverhampton City Council","http://opendatacommunities.org/id/metropolitan-district-council/wolverhampton","PAYPAL  ROYAL MAIL","4.35","Strategic ICTS (ICT Serv Budget)","8999","Comms - Postage","28/04/2017"
"Wolverhampton City Council","http://opendatacommunities.org/id/metropolitan-district-council/wolverhampton","WWW.ROLLARAMP.CO.UK","249.00","Electoral Registration","7399","Equipment - Purchase","28/04/2017"
"Wolverhampton City Council","http://opendatacommunities.org/id/metropolitan-district-council/wolverhampton","ROYAL CARPETS","358.33","LAC Transitions Team","5713","Client Allowances","28/04/2017"
"Wolverhampton City Council","http://opendatacommunities.org/id/metropolitan-district-council/wolverhampton","DRUCKERS","7.83","LAC Transitions Team","5812","Client Allowances","28/04/2017"
"Wolverhampton City Council","http://opendatacommunities.org/id/metropolitan-district-council/wolverhampton","HSBC INVOICE FINAN","497.67","Towers Outdoor Education Centre","6012","Laundry Expenses","28/04/2017"
"Wolverhampton City Council","http://opendatacommunities.org/id/metropolitan-district-council/wolverhampton","WYNNSTAY ARGICULTURAL","190.08","Towers Outdoor Education Centre","5311","Equipment - Purchase","28/04/2017"
"Wolverhampton City Council","http://opendatacommunities.org/id/metropolitan-district-council/wolverhampton","HN NUTTALL LTD","469.68","Towers Outdoor Education Centre","5085","Equipment - Purchase","28/04/2017"
"Wolverhampton City Council","http://opendatacommunities.org/id/metropolitan-district-council/wolverhampton","Amazon UK Marketplace","36.66","Towers Outdoor Education Centre","5942","Equipment - Purchase","28/04/2017"
"Wolverhampton City Council","http://opendatacommunities.org/id/metropolitan-district-council/wolverhampton","SUITES AND BEDS","141.67","LAC Transitions Team","5712","Client Allowances","28/04/2017"
"Wolverhampton City Council","http://opendatacommunities.org/id/metropolitan-district-council/wolverhampton","Trainline","119.85","CIN/CP Social Work Unit - Area 4","4112","Client Transport","28/04/2017"
"Wolverhampton City Council","http://opendatacommunities.org/id/metropolitan-district-council/wolverhampton","WWW.ICO.GOV.UK","35.00","Members Expenses","9399","Subscriptions","28/04/2017"
"Wolverhampton City Council","http://opendatacommunities.org/id/metropolitan-district-council/wolverhampton","WWW.ICO.GOV.UK","35.00","Members Expenses","9399","Subscriptions","28/04/2017"
"Wolverhampton City Council","http://opendatacommunities.org/id/metropolitan-district-council/wolverhampton","WWW.ICO.GOV.UK","35.00","Members Expenses","9399","Subscriptions","28/04/2017"
"Wolverhampton City Council","http://opendatacommunities.org/id/metropolitan-district-council/wolverhampton","WWW.ICO.GOV.UK","35.00","Members Expenses","9399","Subscriptions","28/04/2017"
"Wolverhampton City Council","http://opendatacommunities.org/id/metropolitan-district-council/wolverhampton","WWW.ICO.GOV.UK","35.00","Members Expenses","9399","Subscriptions","28/04/2017"
"Wolverhampton City Council","http://opendatacommunities.org/id/metropolitan-district-council/wolverhampton","WWW.ICO.GOV.UK","35.00","Members Expenses","9399","Subscriptions","28/04/2017"
"Wolverhampton City Council","http://opendatacommunities.org/id/metropolitan-district-council/wolverhampton","Virgin Trains","82.55","Members Expenses","4112","Public Transport","28/04/2017"
"Wolverhampton City Council","http://opendatacommunities.org/id/metropolitan-district-council/wolverhampton","POST OFFICE COUNTER","941.00","Adoption and Residence Team & Allowances","9402","Comms - Postage","27/04/2017"
"Wolverhampton City Council","http://opendatacommunities.org/id/metropolitan-district-council/wolverhampton","HOBBY CRAFT LTD","19.92","Headstart Phase 3","5970","Materials","27/04/2017"
"Wolverhampton City Council","http://opendatacommunities.org/id/metropolitan-district-council/wolverhampton","CHILLINGTON SELF STORA","89.76","LAC Transitions Team","4214","Client Allowances","27/04/2017"
"Wolverhampton City Council","http://opendatacommunities.org/id/metropolitan-district-council/wolverhampton","POST OFFICE COUNTER","65.00","Intensive Family Support Team","9402","Comms - Postage","27/04/2017"
"Wolverhampton City Council","http://opendatacommunities.org/id/metropolitan-district-council/wolverhampton","Virgin Trains","193.50","Strategic Director People","4112","Public Transport","27/04/2017"
"Wolverhampton City Council","http://opendatacommunities.org/id/metropolitan-district-council/wolverhampton","Virgin Trains","193.50","Strategic Director People","4112","Public Transport","27/04/2017"
"Wolverhampton City Council","http://opendatacommunities.org/id/metropolitan-district-council/wolverhampton","Virgin Trains","193.50","Strategic Director People","4112","Public Transport","27/04/2017"
"Wolverhampton City Council","http://opendatacommunities.org/id/metropolitan-district-council/wolverhampton","Trainline","26.06","Research & Development","4112","Public Transport","27/04/2017"
"Wolverhampton City Council","http://opendatacommunities.org/id/metropolitan-district-council/wolverhampton","BETTWS MOTORS LIMITED","98.91","Towers Outdoor Education Centre","7538","Vehicle Maintenance - Repairs","27/04/2017"
"Wolverhampton City Council","http://opendatacommunities.org/id/metropolitan-district-council/wolverhampton","FUEL CARD SERVICES LTD","358.07","Towers Outdoor Education Centre","7399","Equipment - Purchase","27/04/2017"
"Wolverhampton City Council","http://opendatacommunities.org/id/metropolitan-district-council/wolverhampton","UXPIN.COM","79.79","City Direct","7372","Computing - Purchase of Software","27/04/2017"
"Wolverhampton City Council","http://opendatacommunities.org/id/metropolitan-district-council/wolverhampton","TVLICENSING.CO.UK","122.50","LAC Transitions Team","7392","Client Allowances","27/04/2017"
"Wolverhampton City Council","http://opendatacommunities.org/id/metropolitan-district-council/wolverhampton","ASDA SUPERSTORE","29.00","EIP Locality 5","5411","Clothing / Uniforms","27/04/2017"
"Wolverhampton City Council","http://opendatacommunities.org/id/metropolitan-district-council/wolverhampton","Amazon UK Marketplace","22.17","Electoral Registration","5942","Books","27/04/2017"
"Wolverhampton City Council","http://opendatacommunities.org/id/metropolitan-district-council/wolverhampton","Amazon UK Marketplace","10.83","Electoral Registration","5942","Books","27/04/2017"
"Wolverhampton City Council","http://opendatacommunities.org/id/metropolitan-district-council/wolverhampton","Amazon UK Marketplace","19.90","Electoral Registration","5942","Books","27/04/2017"
"Wolverhampton City Council","http://opendatacommunities.org/id/metropolitan-district-council/wolverhampton","LUFTHANSA","257.43","Curatorial - Cultural Learning","3008","Subsistence","27/04/2017"
"Wolverhampton City Council","http://opendatacommunities.org/id/metropolitan-district-council/wolverhampton","FLYBE.COM GT6NYC       0","123.98","Headstart Phase 3","4511","Public Transport","27/04/2017"
"Wolverhampton City Council","http://opendatacommunities.org/id/metropolitan-district-council/wolverhampton","Virgin Trains","282.60","Housing Regeneration - Strategy & Dev","4112","Public Transport","27/04/2017"
"Wolverhampton City Council","http://opendatacommunities.org/id/metropolitan-district-council/wolverhampton","ARGOS LTD","22.48","EIP Locality 2","5310","Equipment - Purchase","27/04/2017"
"Wolverhampton City Council","http://opendatacommunities.org/id/metropolitan-district-council/wolverhampton","LOYD BILSTON","20.00","EIP Locality 2","6011","Financial Assistance In Exceptional Circ","27/04/2017"
"Wolverhampton City Council","http://opendatacommunities.org/id/metropolitan-district-council/wolverhampton","PREMIER INN","133.32","Charlotte Hodes","3811","Accommodation Costs","27/04/2017"
"Wolverhampton City Council","http://opendatacommunities.org/id/metropolitan-district-council/wolverhampton","PREMIER INN","79.16","Charlotte Hodes","3811","Services - Supplies & Services to users","27/04/2017"
"Wolverhampton City Council","http://opendatacommunities.org/id/metropolitan-district-council/wolverhampton","HARLECH FOODSERVICE LT","140.20","Towers Outdoor Education Centre","5422","Catering","27/04/2017"
"Wolverhampton City Council","http://opendatacommunities.org/id/metropolitan-district-council/wolverhampton","C L JONES LIMITED","120.17","Towers Outdoor Education Centre","5211","Materials","27/04/2017"
"Wolverhampton City Council","http://opendatacommunities.org/id/metropolitan-district-council/wolverhampton","Trainline","77.21","Service Director Older People","4112","Public Transport","27/04/2017"
"Wolverhampton City Council","http://opendatacommunities.org/id/metropolitan-district-council/wolverhampton","TOOLSTATION LTD","19.52","Education Catering - General Overheads","5251","Equipment - R & M","27/04/2017"
"Wolverhampton City Council","http://opendatacommunities.org/id/metropolitan-district-council/wolverhampton","Virgin Trains","105.00","Fostering Team & Allowances","4112","Public Transport","27/04/2017"
"Wolverhampton City Council","http://opendatacommunities.org/id/metropolitan-district-council/wolverhampton","PREMIER INN","136.65","Adoption and Residence Team & Allowances","3811","Accommodation Costs","27/04/2017"
"Wolverhampton City Council","http://opendatacommunities.org/id/metropolitan-district-council/wolverhampton","BCC REGISTER OFFIC","-8.33","LAC Transitions Team","9399","Client Allowances","27/04/2017"
"Wolverhampton City Council","http://opendatacommunities.org/id/metropolitan-district-council/wolverhampton","HIGHFIELD HOUSE HO","385.00","CIN/CP Social Work Unit - Area 3","7011","No Recourse to Public Funds","27/04/2017"
"Wolverhampton City Council","http://opendatacommunities.org/id/metropolitan-district-council/wolverhampton","PAYPAL  LIANG XIWEN","8.95","EIP Locality 6","5946","Equipment - Purchase","26/04/2017"
"Wolverhampton City Council","http://opendatacommunities.org/id/metropolitan-district-council/wolverhampton","NOVOTEL WOLVERHAMPTON","72.00","Adoption and Residence Team & Allowances","7011","Services - Supplies & Services to users","26/04/2017"
"Wolverhampton City Council","http://opendatacommunities.org/id/metropolitan-district-council/wolverhampton","SANO SPICES","79.00","B-Safe","5814","Catering","26/04/2017"
"Wolverhampton City Council","http://opendatacommunities.org/id/metropolitan-district-council/wolverhampton","Amazon UK Marketplace","6.62","Headstart Phase 3","5942","Stationery","26/04/2017"
"Wolverhampton City Council","http://opendatacommunities.org/id/metropolitan-district-council/wolverhampton","Amazon UK Marketplace","47.25","Strategic ICTS (ICT Serv Budget)","5942","Computing - Purchase of Hardware","26/04/2017"
"Wolverhampton City Council","http://opendatacommunities.org/id/metropolitan-district-council/wolverhampton","INK N TONER UK","108.11","Central Baths","5943","Stationery","26/04/2017"
"Wolverhampton City Council","http://opendatacommunities.org/id/metropolitan-district-council/wolverhampton","WWW.PRINTERBASE.CO.UK","94.46","Central Baths","5999","Equipment - Purchase","26/04/2017"
"Wolverhampton City Council","http://opendatacommunities.org/id/metropolitan-district-council/wolverhampton","ASDA SUPERSTORE","22.99","EIP Locality 5","5411","Provisions (Not for resale)","26/04/2017"
"Wolverhampton City Council","http://opendatacommunities.org/id/metropolitan-district-council/wolverhampton","POUNDSTRETCHER 0703","8.72","LAC Transitions Team","5714","Client Allowances","26/04/2017"
"Wolverhampton City Council","http://opendatacommunities.org/id/metropolitan-district-council/wolverhampton","HUGHES","130.13","LAC Transitions Team","5732","Client Allowances","26/04/2017"
"Wolverhampton City Council","http://opendatacommunities.org/id/metropolitan-district-council/wolverhampton","WOLVERHAMPTON CC","2.50","Headstart Phase 3","7523","Parking Fees","26/04/2017"
"Wolverhampton City Council","http://opendatacommunities.org/id/metropolitan-district-council/wolverhampton","WM MORRISON 063","111.80","Headstart Phase 3","5411","Provisions (Not for resale)","26/04/2017"
"Wolverhampton City Council","http://opendatacommunities.org/id/metropolitan-district-council/wolverhampton","WWW.CARESHOP.CO.UK","92.34","Ernest Bold Court","5999","Equipment - Purchase","26/04/2017"
"Wolverhampton City Council","http://opendatacommunities.org/id/metropolitan-district-council/wolverhampton","PRIMARK","29.17","IMPACT","5651","Clothing / Uniforms","26/04/2017"
"Wolverhampton City Council","http://opendatacommunities.org/id/metropolitan-district-council/wolverhampton","WWW.MOBILEFUN.CO.U","9.98","Private Sector Housing","4812","Comms - Mobile Telephones","26/04/2017"
"Wolverhampton City Council","http://opendatacommunities.org/id/metropolitan-district-council/wolverhampton","E01510300000000","100.00","MASH","6011","Financial Assistance In Exceptional Circ","26/04/2017"
"Wolverhampton City Council","http://opendatacommunities.org/id/metropolitan-district-council/wolverhampton","TESCO STORES 5194","228.56","Towers Outdoor Education Centre","5411","Provisions (Not for resale)","26/04/2017"
"Wolverhampton City Council","http://opendatacommunities.org/id/metropolitan-district-council/wolverhampton","Photobox Limited","143.75","Towers Outdoor Education Centre","2741","Equipment - Purchase","26/04/2017"
"Wolverhampton City Council","http://opendatacommunities.org/id/metropolitan-district-council/wolverhampton","1&1 INTERNET LIMITED","16.78","Technical Support","4816","Computing - Purchase of Software","26/04/2017"
"Wolverhampton City Council","http://opendatacommunities.org/id/metropolitan-district-council/wolverhampton","B & Q 1243","-13.33","Bradley Resource Centre","5211","Equipment - R & M","26/04/2017"
"Wolverhampton City Council","http://opendatacommunities.org/id/metropolitan-district-council/wolverhampton","B & Q 1243","13.33","Bradley Resource Centre","5211","Equipment - R & M","26/04/2017"
"Wolverhampton City Council","http://opendatacommunities.org/id/metropolitan-district-council/wolverhampton","B & Q 1243","13.33","Bradley Resource Centre","5211","Equipment - R & M","26/04/2017"
"Wolverhampton City Council","http://opendatacommunities.org/id/metropolitan-district-council/wolverhampton","PREMIER INN","450.96","Civic Centre","3811","Services - Supplies & Services to users","26/04/2017"
"Wolverhampton City Council","http://opendatacommunities.org/id/metropolitan-district-council/wolverhampton","Trainline","94.76","CIN/CP Social Work Unit - Area 7","4112","Public Transport","26/04/2017"
"Wolverhampton City Council","http://opendatacommunities.org/id/metropolitan-district-council/wolverhampton","ASDA HOME SHOPPING","-1.00","Ernest Bold Court","5411","Provisions (Not for resale)","26/04/2017"
"Wolverhampton City Council","http://opendatacommunities.org/id/metropolitan-district-council/wolverhampton","PARTS.HOTPOINT.CO.UK","-36.48","Ernest Bold Court","5999","Equipment - Purchase","26/04/2017"
"Wolverhampton City Council","http://opendatacommunities.org/id/metropolitan-district-council/wolverhampton","G & M HALE LTD","20.50","Service Wide","5992","Materials","26/04/2017"
"Wolverhampton City Council","http://opendatacommunities.org/id/metropolitan-district-council/wolverhampton","WEST COAST TRAINS","13.20","Fleet Management","4112","Public Transport","26/04/2017"
"Wolverhampton City Council","http://opendatacommunities.org/id/metropolitan-district-council/wolverhampton","CUMMINS DIESEL","99.05","Fleet Management","8911","Equipment - Purchase","26/04/2017"
"Wolverhampton City Council","http://opendatacommunities.org/id/metropolitan-district-council/wolverhampton","Trainline","265.71","CIN/CP Social Work Unit - Area 8","4112","Public Transport","26/04/2017"
"Wolverhampton City Council","http://opendatacommunities.org/id/metropolitan-district-council/wolverhampton","SAFETYBOOTSUK","42.93","Parks - East Area Management","5661","Clothing / Uniforms","26/04/2017"
"Wolverhampton City Council","http://opendatacommunities.org/id/metropolitan-district-council/wolverhampton","Virgin Trains","8.40","Planning","4112","Public Transport","25/04/2017"
"Wolverhampton City Council","http://opendatacommunities.org/id/metropolitan-district-council/wolverhampton","Virgin Trains","46.80","Members Expenses","4112","Public Transport","25/04/2017"
"Wolverhampton City Council","http://opendatacommunities.org/id/metropolitan-district-council/wolverhampton","Amazon UK Marketplace","23.04","LAC Education Team (LACE)","5942","Equipment - Purchase","25/04/2017"
"Wolverhampton City Council","http://opendatacommunities.org/id/metropolitan-district-council/wolverhampton","Amazon UK Marketplace","5.82","Pupil Premium","5942","Equipment - Purchase","25/04/2017"
"Wolverhampton City Council","http://opendatacommunities.org/id/metropolitan-district-council/wolverhampton","Trainline","112.91","SWP - Infrastructure","4112","Public Transport","25/04/2017"
"Wolverhampton City Council","http://opendatacommunities.org/id/metropolitan-district-council/wolverhampton","WP-HAYMARKET PUBLI","125.00","Corporate Procurement Unit","5192","Conference Expenses","25/04/2017"
"Wolverhampton City Council","http://opendatacommunities.org/id/metropolitan-district-council/wolverhampton","WWW.NOBISCO.CO.UK","55.72","Central Baths","7349","Contract Cleaning","25/04/2017"
"Wolverhampton City Council","http://opendatacommunities.org/id/metropolitan-district-council/wolverhampton","WWW.WMCA.CO.UK","96.00","CIN/CP Social Work Unit - Area 3","9399","Services - Fees and Charges","25/04/2017"
"Wolverhampton City Council","http://opendatacommunities.org/id/metropolitan-district-council/wolverhampton","WEST COAST TRAINS","194.00","CIN/CP Social Work Unit - Area 3","4112","Public Transport","25/04/2017"
"Wolverhampton City Council","http://opendatacommunities.org/id/metropolitan-district-council/wolverhampton","CONCENTRIC LETTINGS LT","1230.00","CIN/CP Social Work Unit - Area 3","8999","Services - Professional Fees","25/04/2017"
"Wolverhampton City Council","http://opendatacommunities.org/id/metropolitan-district-council/wolverhampton","AMAZON UK RETAIL AMAZO","89.48","Archives","5999","Equipment - Purchase","25/04/2017"
"Wolverhampton City Council","http://opendatacommunities.org/id/metropolitan-district-council/wolverhampton","BRITANNIA","118.33","CIN/CP Social Work Unit - Area 2","7011","Section 17","25/04/2017"
"Wolverhampton City Council","http://opendatacommunities.org/id/metropolitan-district-council/wolverhampton","Trainline","73.80","CIN/CP Social Work Unit - Area 2","4112","Section 17","25/04/2017"
"Wolverhampton City Council","http://opendatacommunities.org/id/metropolitan-district-council/wolverhampton","Trainline","73.80","CIN/CP Social Work Unit - Area 2","4112","Section 17","25/04/2017"
"Wolverhampton City Council","http://opendatacommunities.org/id/metropolitan-district-council/wolverhampton","WWW.HIGHFIELD.CO.UK","330.00","School Meals Statutory Standards","2741","Training Expenses","25/04/2017"
"Wolverhampton City Council","http://opendatacommunities.org/id/metropolitan-district-council/wolverhampton","WWW.HIGHFIELD.CO.UK","307.10","School Meals Statutory Standards","2741","Training Expenses","25/04/2017"
"Wolverhampton City Council","http://opendatacommunities.org/id/metropolitan-district-council/wolverhampton","ARGOS RETAIL GROUP","14.99","Commissioning Disabilities","5310","Equipment - Purchase","25/04/2017"
"Wolverhampton City Council","http://opendatacommunities.org/id/metropolitan-district-council/wolverhampton","AMAZON UK RETAIL AMAZO","1011.76","Technical Support","5999","Equipment - Purchase","25/04/2017"
"Wolverhampton City Council","http://opendatacommunities.org/id/metropolitan-district-council/wolverhampton","DRI TechSmith","316.20","Technical Support","5734","Computing - Purchase of Software","25/04/2017"
"Wolverhampton City Council","http://opendatacommunities.org/id/metropolitan-district-council/wolverhampton","WWW.HFE-SIGNS.CO.UK","118.86","Head Start (Digital Strand)","2741","Publications","25/04/2017"
"Wolverhampton City Council","http://opendatacommunities.org/id/metropolitan-district-council/wolverhampton","Wix.com","93.13","Technical Support","5817","Computing - Purchase of Software","25/04/2017"
"Wolverhampton City Council","http://opendatacommunities.org/id/metropolitan-district-council/wolverhampton","Amazon UK Marketplace","2.89","Technical Support","5942","Books","25/04/2017"
"Wolverhampton City Council","http://opendatacommunities.org/id/metropolitan-district-council/wolverhampton","Amazon UK Marketplace","1.89","Technical Support","5942","Books","25/04/2017"
"Wolverhampton City Council","http://opendatacommunities.org/id/metropolitan-district-council/wolverhampton","WEST COAST TRAINS","7.60","Curatorial - Cultural Learning","4112","Public Transport","25/04/2017"
"Wolverhampton City Council","http://opendatacommunities.org/id/metropolitan-district-council/wolverhampton","WWW.ICO.GOV.UK","35.00","Members Expenses","9399","Subscriptions","25/04/2017"
"Wolverhampton City Council","http://opendatacommunities.org/id/metropolitan-district-council/wolverhampton","Amazon UK Marketplace","4.00","Inclusion Support","5942","Equipment - Purchase","25/04/2017"
"Wolverhampton City Council","http://opendatacommunities.org/id/metropolitan-district-council/wolverhampton","POST OFFICE COUNTER","9.76","Economic Development","9402","Comms - Postage","25/04/2017"
"Wolverhampton City Council","http://opendatacommunities.org/id/metropolitan-district-council/wolverhampton","TRAVELODGE","303.33","CIN/CP Social Work Unit - Area 4","3615","Accommodation Costs","25/04/2017"
"Wolverhampton City Council","http://opendatacommunities.org/id/metropolitan-district-council/wolverhampton","MBL SEMINARS","60.00","Central Training","8299","Training Expenses","25/04/2017"
"Wolverhampton City Council","http://opendatacommunities.org/id/metropolitan-district-council/wolverhampton","ASDA HOME SHOPPING","82.49","Ernest Bold Court","5411","Provisions (Not for resale)","25/04/2017"
"Wolverhampton City Council","http://opendatacommunities.org/id/metropolitan-district-council/wolverhampton","G & M HALE (SUNDRIES)","54.10","Creative Studies Delivery Area","5992","Materials","25/04/2017"
"Wolverhampton City Council","http://opendatacommunities.org/id/metropolitan-district-council/wolverhampton","G & M HALE LTD","38.20","Discretionary Fund","5992","Materials","25/04/2017"
"Wolverhampton City Council","http://opendatacommunities.org/id/metropolitan-district-council/wolverhampton","HERON FOODS LTD","3.52","Mayoral Expenses","5499","Hospitality","25/04/2017"
"Wolverhampton City Council","http://opendatacommunities.org/id/metropolitan-district-council/wolverhampton","BRITANNIA","42.50","CIN/CP Social Work Unit - Area 1","7011","Section 17","25/04/2017"
"Wolverhampton City Council","http://opendatacommunities.org/id/metropolitan-district-council/wolverhampton","BRITANNIA","10.50","CIN/CP Social Work Unit - Area 1","7011","Section 17","25/04/2017"
"Wolverhampton City Council","http://opendatacommunities.org/id/metropolitan-district-council/wolverhampton","Trainline","122.45","Adoption and Residence Team & Allowances","4112","Public Transport","25/04/2017"
"Wolverhampton City Council","http://opendatacommunities.org/id/metropolitan-district-council/wolverhampton","Trainline","152.29","Adoption and Residence Team & Allowances","4112","Public Transport","25/04/2017"
"Wolverhampton City Council","http://opendatacommunities.org/id/metropolitan-district-council/wolverhampton","SANDWELL MBC/INET","20.00","LAC Transitions Team","9399","Client Allowances","25/04/2017"
"Wolverhampton City Council","http://opendatacommunities.org/id/metropolitan-district-council/wolverhampton","BCC REGISTER OFFIC","12.50","LAC Transitions Team","9399","Client Allowances","25/04/2017"
"Wolverhampton City Council","http://opendatacommunities.org/id/metropolitan-district-council/wolverhampton","AMAZON UK RETAIL AMAZO","133.58","Pupil Premium","5999","Books","24/04/2017"
"Wolverhampton City Council","http://opendatacommunities.org/id/metropolitan-district-council/wolverhampton","AMAZON UK RETAIL AMAZO","23.85","LAC Education Team (LACE)","5999","Equipment - Purchase","24/04/2017"
"Wolverhampton City Council","http://opendatacommunities.org/id/metropolitan-district-council/wolverhampton","WWW.ARGOS.CO.UK","283.94","LAC Transitions Team","5310","Client Allowances","24/04/2017"
"Wolverhampton City Council","http://opendatacommunities.org/id/metropolitan-district-council/wolverhampton","CURRYS S/S","124.99","LAC Transitions Team","5732","Client Allowances","24/04/2017"
"Wolverhampton City Council","http://opendatacommunities.org/id/metropolitan-district-council/wolverhampton","Virgin Trains","223.00","Adoption and Residence Team & Allowances","4112","Public Transport","24/04/2017"
"Wolverhampton City Council","http://opendatacommunities.org/id/metropolitan-district-council/wolverhampton","BRITISHFOODSHOP","65.22","Headstart Phase 3","5499","Catering","24/04/2017"
"Wolverhampton City Council","http://opendatacommunities.org/id/metropolitan-district-council/wolverhampton","FACEBK 39PTNCWAR2","23.02","Communications & Marketing - General","7311","Marketing \ Non-staff advertising","24/04/2017"
"Wolverhampton City Council","http://opendatacommunities.org/id/metropolitan-district-council/wolverhampton","FACEBK 29PTNCWAR2","477.11","Communications & Marketing - General","7311","Marketing \ Non-staff advertising","24/04/2017"
"Wolverhampton City Council","http://opendatacommunities.org/id/metropolitan-district-council/wolverhampton","GODADDY COM EUROPE","21.19","Mayoral Expenses","4816","Computing - Purchase of Software","24/04/2017"
"Wolverhampton City Council","http://opendatacommunities.org/id/metropolitan-district-council/wolverhampton","ASDA HOME SHOPPING","2.50","Upper Pendeford Farm Childrens Home","5411","Provisions (Not for resale)","24/04/2017"
"Wolverhampton City Council","http://opendatacommunities.org/id/metropolitan-district-council/wolverhampton","WP-ACAS","230.00","Central Training","8999","Training Expenses","24/04/2017"
"Wolverhampton City Council","http://opendatacommunities.org/id/metropolitan-district-council/wolverhampton","AMAZON UK RETAIL AMAZO","6.31","School Improvement","5999","Equipment - Purchase","24/04/2017"
"Wolverhampton City Council","http://opendatacommunities.org/id/metropolitan-district-council/wolverhampton","POST OFFICE COUNTER","130.00","Fostering Team & Allowances","9402","Comms - Postage","24/04/2017"
"Wolverhampton City Council","http://opendatacommunities.org/id/metropolitan-district-council/wolverhampton","Trainline","99.65","CIN/CP Social Work Unit - Area 7","4112","Public Transport","24/04/2017"
"Wolverhampton City Council","http://opendatacommunities.org/id/metropolitan-district-council/wolverhampton","WWW.ARGOS.CO.UK","198.94","EIP Locality 5","5310","Financial Assistance In Exceptional Circ","24/04/2017"
"Wolverhampton City Council","http://opendatacommunities.org/id/metropolitan-district-council/wolverhampton","Akzonobel","38.18","Technical Material","5198","Materials","24/04/2017"
"Wolverhampton City Council","http://opendatacommunities.org/id/metropolitan-district-council/wolverhampton","HIGHFIELD HOUSE HO","385.00","CIN/CP Social Work Unit - Area 3","7011","No Recourse to Public Funds","24/04/2017"
"Wolverhampton City Council","http://opendatacommunities.org/id/metropolitan-district-council/wolverhampton","TFM FARM & COUNTRY SUP","-20.00","Northicote Farm","5399","Materials","24/04/2017"
"Wolverhampton City Council","http://opendatacommunities.org/id/metropolitan-district-council/wolverhampton","TFM FARM & COUNTRY SUP","87.93","Northicote Farm","5399","Equipment - R & M","24/04/2017"
"Wolverhampton City Council","http://opendatacommunities.org/id/metropolitan-district-council/wolverhampton","Amazon UK Marketplace","15.15","Global Budgets","5942","Books","24/04/2017"
"Wolverhampton City Council","http://opendatacommunities.org/id/metropolitan-district-council/wolverhampton","Amazon UK Marketplace","5.94","Global Budgets","5942","Books","24/04/2017"
"Wolverhampton City Council","http://opendatacommunities.org/id/metropolitan-district-council/wolverhampton","Amazon UK Marketplace","7.01","Global Budgets","5942","Books","24/04/2017"
"Wolverhampton City Council","http://opendatacommunities.org/id/metropolitan-district-council/wolverhampton","Amazon UK Marketplace","15.80","Global Budgets","5942","Books","24/04/2017"
"Wolverhampton City Council","http://opendatacommunities.org/id/metropolitan-district-council/wolverhampton","MAN MET UNI","189.00","Inclusion Support","8220","Training Expenses","24/04/2017"
"Wolverhampton City Council","http://opendatacommunities.org/id/metropolitan-district-council/wolverhampton","WOLVERHAMPTON ART","9.15","Curatorial - Cultural Learning","8299","Public Transport","24/04/2017"
"Wolverhampton City Council","http://opendatacommunities.org/id/metropolitan-district-council/wolverhampton","WOLVERHAMPTON CITY COU","21.00","The Little Civic","9399","Services - General Licences","24/04/2017"
"Wolverhampton City Council","http://opendatacommunities.org/id/metropolitan-district-council/wolverhampton","M-R-S COMMUNICATIONS L","130.00","The Little Civic","5046","Equipment - Hire","24/04/2017"
"Wolverhampton City Council","http://opendatacommunities.org/id/metropolitan-district-council/wolverhampton","WWW.STAPLES.CO.UK","64.16","Cafe","5943","Equipment - Purchase","24/04/2017"
"Wolverhampton City Council","http://opendatacommunities.org/id/metropolitan-district-council/wolverhampton","BAUER MEDIA","72.00","Civic Halls Non Direct Management A/C","2741","Subscriptions","24/04/2017"
"Wolverhampton City Council","http://opendatacommunities.org/id/metropolitan-district-council/wolverhampton","REDWINGS LODGE","154.00","CIN/CP Social Work Unit - Area 4","7011","Accommodation Costs","24/04/2017"
"Wolverhampton City Council","http://opendatacommunities.org/id/metropolitan-district-council/wolverhampton","ARGOS RETAIL GROUP","21.19","CIN/CP Social Work Unit - Area 4","5310","Equipment - Purchase","24/04/2017"
"Wolverhampton City Council","http://opendatacommunities.org/id/metropolitan-district-council/wolverhampton","ARGOS RETAIL GROUP","24.99","CIN/CP Social Work Unit - Area 4","5310","Equipment - Purchase","24/04/2017"
"Wolverhampton City Council","http://opendatacommunities.org/id/metropolitan-district-council/wolverhampton","THE WORKS","5.00","Archives","5310","Equipment - Purchase","24/04/2017"
"Wolverhampton City Council","http://opendatacommunities.org/id/metropolitan-district-council/wolverhampton","WWW.COFFEESUPPLIESDIRE","11.20","Archives","5331","Equipment - Purchase","24/04/2017"
"Wolverhampton City Council","http://opendatacommunities.org/id/metropolitan-district-council/wolverhampton","NATIONWIDE","10.00","Ernest Bold Court","6011","Public Transport","24/04/2017"
"Wolverhampton City Council","http://opendatacommunities.org/id/metropolitan-district-council/wolverhampton","ARGOS LTD","16.99","CIN/CP Social Work Unit - Area 2","5310","Section 17","24/04/2017"
"Wolverhampton City Council","http://opendatacommunities.org/id/metropolitan-district-council/wolverhampton","WEST COAST TRAINS","17.00","Condition Surveys","4112","Public Transport","24/04/2017"
"Wolverhampton City Council","http://opendatacommunities.org/id/metropolitan-district-council/wolverhampton","ASDA SUPERSTORE","5.83","LAC Transitions Team","5411","Client Allowances","24/04/2017"
"Wolverhampton City Council","http://opendatacommunities.org/id/metropolitan-district-council/wolverhampton","ASDA STORES LTD 4225","138.33","LAC Transitions Team","5411","Client Allowances","24/04/2017"
"Wolverhampton City Council","http://opendatacommunities.org/id/metropolitan-district-council/wolverhampton","WWW.COFFEESUPPLIESDIRE","15.15","Craftplay","5331","Materials","24/04/2017"
"Wolverhampton City Council","http://opendatacommunities.org/id/metropolitan-district-council/wolverhampton","Amazon Prime","7.99","Technical Support","5968","Subscriptions","24/04/2017"
"Wolverhampton City Council","http://opendatacommunities.org/id/metropolitan-district-council/wolverhampton","Amazon UK Marketplace","5.35","Technical Support","5942","Books","24/04/2017"
"Wolverhampton City Council","http://opendatacommunities.org/id/metropolitan-district-council/wolverhampton","CURRYS ONLINE","315.83","Technical Support","5732","Equipment - Purchase","24/04/2017"
"Wolverhampton City Council","http://opendatacommunities.org/id/metropolitan-district-council/wolverhampton","ALDI","6.50","EIP Locality 8","5411","Grant Payments","21/04/2017"
"Wolverhampton City Council","http://opendatacommunities.org/id/metropolitan-district-council/wolverhampton","ASDA STORES","47.50","CIN/CP Social Work Unit - Area 2","5411","No Recourse to Public Funds","21/04/2017"
"Wolverhampton City Council","http://opendatacommunities.org/id/metropolitan-district-council/wolverhampton","DVLA DRIVER ONLINE","34.00","EIP Locality 1","9399","Financial Assistance In Exceptional Circ","21/04/2017"
"Wolverhampton City Council","http://opendatacommunities.org/id/metropolitan-district-council/wolverhampton","HANDS FREE COMPUTING","229.00","Learning Disabilities Management","5045","Equipment - Purchase","21/04/2017"
"Wolverhampton City Council","http://opendatacommunities.org/id/metropolitan-district-council/wolverhampton","HANDS FREE COMPUTING","609.87","Learning Disabilities Management","5045","Equipment - Purchase","21/04/2017"
"Wolverhampton City Council","http://opendatacommunities.org/id/metropolitan-district-council/wolverhampton","ASDA SUPERSTORE","29.17","LAC Transitions Team","5411","Client Allowances","21/04/2017"
"Wolverhampton City Council","http://opendatacommunities.org/id/metropolitan-district-council/wolverhampton","Trainline","35.65","Michael Lyons","4112","Public Transport","21/04/2017"
"Wolverhampton City Council","http://opendatacommunities.org/id/metropolitan-district-council/wolverhampton","Trainline","89.15","Michael Lyons","4112","Public Transport","21/04/2017"
"Wolverhampton City Council","http://opendatacommunities.org/id/metropolitan-district-council/wolverhampton","Amazon EU","81.96","Technical Support","5969","Equipment - Purchase","21/04/2017"
"Wolverhampton City Council","http://opendatacommunities.org/id/metropolitan-district-council/wolverhampton","Amazon UK Marketplace","18.55","Technical Support","5942","Books","21/04/2017"
"Wolverhampton City Council","http://opendatacommunities.org/id/metropolitan-district-council/wolverhampton","Amazon UK Marketplace","29.97","Technical Support","5942","Books","21/04/2017"
"Wolverhampton City Council","http://opendatacommunities.org/id/metropolitan-district-council/wolverhampton","TVLICENSING.CO.UK","147.00","LAC Transitions Team","7392","Client Allowances","21/04/2017"
"Wolverhampton City Council","http://opendatacommunities.org/id/metropolitan-district-council/wolverhampton","HOLIDAY INNS","59.17","EIP Locality 6","3501","Services - Supplies & Services to users","21/04/2017"
"Wolverhampton City Council","http://opendatacommunities.org/id/metropolitan-district-council/wolverhampton","REGISTRARS OFFICE","30.00","Adoption and Residence Team & Allowances","8299","Services - Fees and Charges","21/04/2017"
"Wolverhampton City Council","http://opendatacommunities.org/id/metropolitan-district-council/wolverhampton","VUE ITCERTIFICATIONVUE","135.60","Strategic ICTS (ICT Serv Budget)","8299","Training Expenses","21/04/2017"
"Wolverhampton City Council","http://opendatacommunities.org/id/metropolitan-district-council/wolverhampton","ASDA HOME SHOPPING","259.78","Upper Pendeford Farm Childrens Home","5411","Provisions (Not for resale)","21/04/2017"
"Wolverhampton City Council","http://opendatacommunities.org/id/metropolitan-district-council/wolverhampton","ASDA HOME SHOPPING","0.21","Upper Pendeford Farm Childrens Home","5411","Provisions (Not for resale)","21/04/2017"
"Wolverhampton City Council","http://opendatacommunities.org/id/metropolitan-district-council/wolverhampton","SPEEDY ASSET SRVCS","-215.44","Central Costs","7394","Equipment - Purchase","21/04/2017"
"Wolverhampton City Council","http://opendatacommunities.org/id/metropolitan-district-council/wolverhampton","WWW.WESTMINSTER-BRIEFI","294.00","Director of Education","8244","Training Expenses","21/04/2017"
"Wolverhampton City Council","http://opendatacommunities.org/id/metropolitan-district-council/wolverhampton","WM MORRISON 024","200.00","CIN/CP Social Work Unit - Area 2","5411","Section 17","21/04/2017"
"Wolverhampton City Council","http://opendatacommunities.org/id/metropolitan-district-council/wolverhampton","Amazon UK Marketplace","4.00","Global Budgets","5942","Books","21/04/2017"
"Wolverhampton City Council","http://opendatacommunities.org/id/metropolitan-district-council/wolverhampton","Amazon UK Marketplace","5.06","Global Budgets","5942","Books","21/04/2017"
"Wolverhampton City Council","http://opendatacommunities.org/id/metropolitan-district-council/wolverhampton","ASDA STORES","25.00","CIN/CP Social Work Unit - Area 2","5411","No Recourse to Public Funds","21/04/2017"
"Wolverhampton City Council","http://opendatacommunities.org/id/metropolitan-district-council/wolverhampton","POST OFFICE COUNTER","55.75","LAC Team","9402","Financial Assistance In Exceptional Circ","21/04/2017"
"Wolverhampton City Council","http://opendatacommunities.org/id/metropolitan-district-council/wolverhampton","Trainline","47.07","Service Director Older People","4112","Public Transport","21/04/2017"
"Wolverhampton City Council","http://opendatacommunities.org/id/metropolitan-district-council/wolverhampton","B&M RETAIL LTD","60.56","LAC Transitions Team","5310","Client Allowances","21/04/2017"
"Wolverhampton City Council","http://opendatacommunities.org/id/metropolitan-district-council/wolverhampton","ARGOS LTD","71.56","LAC Transitions Team","5310","Client Allowances","21/04/2017"
"Wolverhampton City Council","http://opendatacommunities.org/id/metropolitan-district-council/wolverhampton","EE & T-MOBILE","164.62","Civic Halls Non Direct Management A/C","4814","Comms - Telephone Call charges","21/04/2017"
"Wolverhampton City Council","http://opendatacommunities.org/id/metropolitan-district-council/wolverhampton","ASDA HOME SHOPPING","92.04","Ernest Bold Court","5411","Provisions (Not for resale)","21/04/2017"
"Wolverhampton City Council","http://opendatacommunities.org/id/metropolitan-district-council/wolverhampton","AMAZON UK RETAIL AMAZO","55.16","School Improvement","5999","Equipment - Purchase","21/04/2017"
"Wolverhampton City Council","http://opendatacommunities.org/id/metropolitan-district-council/wolverhampton","Amazon EU","55.16","School Improvement","5969","Equipment - Purchase","21/04/2017"
"Wolverhampton City Council","http://opendatacommunities.org/id/metropolitan-district-council/wolverhampton","Amazon UK Marketplace","10.96","School Improvement","5942","Books","21/04/2017"
"Wolverhampton City Council","http://opendatacommunities.org/id/metropolitan-district-council/wolverhampton","STATION HOTEL,","41.67","CIN/CP Social Work Unit - Area 7","7011","No Recourse to Public Funds","21/04/2017"
"Wolverhampton City Council","http://opendatacommunities.org/id/metropolitan-district-council/wolverhampton","LOYD MORR WILLENHALL","250.00","CIN/CP Social Work Unit - Area 6","6011","Services - Professional Fees","21/04/2017"
"Wolverhampton City Council","http://opendatacommunities.org/id/metropolitan-district-council/wolverhampton","B&M RETAIL LTD","65.98","EIP Locality 8","5310","Grant Payments","21/04/2017"
"Wolverhampton City Council","http://opendatacommunities.org/id/metropolitan-district-council/wolverhampton","HOME BARGAINS","5.44","EIP Locality 8","5251","Grant Payments","21/04/2017"
"Wolverhampton City Council","http://opendatacommunities.org/id/metropolitan-district-council/wolverhampton","TESCO DELIVERY SAVER2","2.92","Towers Outdoor Education Centre","5968","Provisions (Not for resale)","20/04/2017"
"Wolverhampton City Council","http://opendatacommunities.org/id/metropolitan-district-council/wolverhampton","PAYPAL  BANANAPRINT","39.92","Head Start (Digital Strand)","8931","Services - Professional Fees","20/04/2017"
"Wolverhampton City Council","http://opendatacommunities.org/id/metropolitan-district-council/wolverhampton","Virgin Trains","226.00","Graduate Trainees","4112","Public Transport","20/04/2017"
"Wolverhampton City Council","http://opendatacommunities.org/id/metropolitan-district-council/wolverhampton","Trainline","199.41","Service Director City Economy","4112","Public Transport","20/04/2017"
"Wolverhampton City Council","http://opendatacommunities.org/id/metropolitan-district-council/wolverhampton","WWW.WMCA.CO.UK","96.00","CIN/CP Social Work Unit - Area 3","9399","Client Transport","20/04/2017"
"Wolverhampton City Council","http://opendatacommunities.org/id/metropolitan-district-council/wolverhampton","STATION HOTEL,","41.67","CIN/CP Social Work Unit - Area 7","7011","No Recourse to Public Funds","20/04/2017"
"Wolverhampton City Council","http://opendatacommunities.org/id/metropolitan-district-council/wolverhampton","ASDA SUPERSTORE","0.99","Mayoral Expenses","5411","Hospitality","20/04/2017"
"Wolverhampton City Council","http://opendatacommunities.org/id/metropolitan-district-council/wolverhampton","LONDIS","12.05","Macmillan Welfare Rights","5411","Provisions (Not for resale)","20/04/2017"
"Wolverhampton City Council","http://opendatacommunities.org/id/metropolitan-district-council/wolverhampton","RIDDLE.COM","8.83","Healthy Lifestyles","5734","Computing - Purchase of Software","20/04/2017"
"Wolverhampton City Council","http://opendatacommunities.org/id/metropolitan-district-council/wolverhampton","WOLF MOUNTAIN LTD","50.00","EIP Locality 5","7399","Educ Trips, Holidays, Outings, Activity","20/04/2017"
"Wolverhampton City Council","http://opendatacommunities.org/id/metropolitan-district-council/wolverhampton","POST OFFICE COUNTER","7.25","Adoption and Residence Team & Allowances","9402","Comms - Postage","20/04/2017"
"Wolverhampton City Council","http://opendatacommunities.org/id/metropolitan-district-council/wolverhampton","B&M RETAIL","93.91","B-Safe","5310","Equipment - Purchase","20/04/2017"
"Wolverhampton City Council","http://opendatacommunities.org/id/metropolitan-district-council/wolverhampton","Amazon UK Marketplace","97.19","Strategic ICTS (ICT Serv Budget)","5942","Computing - Purchase of Hardware","20/04/2017"
"Wolverhampton City Council","http://opendatacommunities.org/id/metropolitan-district-council/wolverhampton","UNIVAR-MOTO","326.54","Central Baths","5169","Materials","20/04/2017"
"Wolverhampton City Council","http://opendatacommunities.org/id/metropolitan-district-council/wolverhampton","XMA LTD","561.97","Electoral Registration","7372","Computing - Purchase of Software","20/04/2017"
"Wolverhampton City Council","http://opendatacommunities.org/id/metropolitan-district-council/wolverhampton","XMA LTD","833.33","Electoral Registration","7372","Computing - Purchase of Software","20/04/2017"
"Wolverhampton City Council","http://opendatacommunities.org/id/metropolitan-district-council/wolverhampton","XMA LTD","833.33","Electoral Registration","7372","Computing - Purchase of Software","20/04/2017"
"Wolverhampton City Council","http://opendatacommunities.org/id/metropolitan-district-council/wolverhampton","ROYAL CARPETS","333.33","LAC Transitions Team","5713","Client Allowances","20/04/2017"
"Wolverhampton City Council","http://opendatacommunities.org/id/metropolitan-district-council/wolverhampton","LIDDELL ELECTRICAL DIS","25.60","Bilston Town Hall","5065","Equipment - Purchase","20/04/2017"
"Wolverhampton City Council","http://opendatacommunities.org/id/metropolitan-district-council/wolverhampton","WEST MIDLANDS TRAV","163.50","EIP Locality 1","4131","Financial Assistance In Exceptional Circ","20/04/2017"
"Wolverhampton City Council","http://opendatacommunities.org/id/metropolitan-district-council/wolverhampton","MIDLAND DOMESTIC","159.00","EIP Locality 1","5722","Financial Assistance In Exceptional Circ","20/04/2017"
"Wolverhampton City Council","http://opendatacommunities.org/id/metropolitan-district-council/wolverhampton","B & Q 1276","37.50","Craftplay","5211","Materials","20/04/2017"
"Wolverhampton City Council","http://opendatacommunities.org/id/metropolitan-district-council/wolverhampton","WISEPOPSCOM","40.10","City Direct","7372","Computing - Purchase of Software","19/04/2017"
"Wolverhampton City Council","http://opendatacommunities.org/id/metropolitan-district-council/wolverhampton","Trainline","51.25","Youth Offending Team","4112","Public Transport","19/04/2017"
"Wolverhampton City Council","http://opendatacommunities.org/id/metropolitan-district-council/wolverhampton","EMAP LTD-SUBSCRIPTIONS","74.75","Strategic Director People","2741","Publications","19/04/2017"
"Wolverhampton City Council","http://opendatacommunities.org/id/metropolitan-district-council/wolverhampton","Trainline","49.78","Archives","4112","Public Transport","19/04/2017"
"Wolverhampton City Council","http://opendatacommunities.org/id/metropolitan-district-council/wolverhampton","BRITANNIA","29.17","CIN/CP Social Work Unit - Area 2","7011","Accommodation Costs","19/04/2017"
"Wolverhampton City Council","http://opendatacommunities.org/id/metropolitan-district-council/wolverhampton","Trainline","83.84","CIN/CP Social Work Unit - Area 2","4112","Section 17","19/04/2017"
"Wolverhampton City Council","http://opendatacommunities.org/id/metropolitan-district-council/wolverhampton","Wix.com","109.39","Technical Support","5817","Computing - Purchase of Software","19/04/2017"
"Wolverhampton City Council","http://opendatacommunities.org/id/metropolitan-district-council/wolverhampton","Amazon Prime","7.99","EIP Locality 3","5968","Equipment - Purchase","19/04/2017"
"Wolverhampton City Council","http://opendatacommunities.org/id/metropolitan-district-council/wolverhampton","CUMMINGS BROTHERS LOCK","41.67","Cafe","7399","Equipment - Purchase","19/04/2017"
"Wolverhampton City Council","http://opendatacommunities.org/id/metropolitan-district-council/wolverhampton","BRITANNIA","160.83","CIN/CP Social Work Unit - Area 4","7011","Accommodation Costs","19/04/2017"
"Wolverhampton City Council","http://opendatacommunities.org/id/metropolitan-district-council/wolverhampton","WWW.WMCA.CO.UK","132.00","CIN/CP Social Work Unit - Area 4","9399","Client Transport","19/04/2017"
"Wolverhampton City Council","http://opendatacommunities.org/id/metropolitan-district-council/wolverhampton","WM MORRISON 024","4.74","Fostering Team & Allowances","5411","Provisions (Not for resale)","19/04/2017"
"Wolverhampton City Council","http://opendatacommunities.org/id/metropolitan-district-council/wolverhampton","THE RANGE","55.98","LAC Transitions Team","5311","Client Allowances","19/04/2017"
"Wolverhampton City Council","http://opendatacommunities.org/id/metropolitan-district-council/wolverhampton","CT WOLVERHAMPTON","22.50","LAC Transitions Team","8398","Client Allowances","19/04/2017"
"Wolverhampton City Council","http://opendatacommunities.org/id/metropolitan-district-council/wolverhampton","TRINITY MIRROR PUBLISH","153.50","Towers Outdoor Education Centre","7311","Equipment - Purchase","19/04/2017"
"Wolverhampton City Council","http://opendatacommunities.org/id/metropolitan-district-council/wolverhampton","BARCLAYS BANK PLC","250.00","CIN/CP Social Work Unit - Area 6","6011","Financial Assistance In Exceptional Circ","19/04/2017"
"Wolverhampton City Council","http://opendatacommunities.org/id/metropolitan-district-council/wolverhampton","SCREWFIX WOLVERHAM","10.40","Public Conveniences","5211","Equipment - Purchase","18/04/2017"
"Wolverhampton City Council","http://opendatacommunities.org/id/metropolitan-district-council/wolverhampton","ASDA HOME SHOPPING","96.43","Ernest Bold Court","5411","Provisions (Not for resale)","18/04/2017"
"Wolverhampton City Council","http://opendatacommunities.org/id/metropolitan-district-council/wolverhampton","TRAINLINE","-228.30","Legal Services","4112","Public Transport","18/04/2017"
"Wolverhampton City Council","http://opendatacommunities.org/id/metropolitan-district-council/wolverhampton","TRAINLINE","-257.00","Legal Services","4112","Public Transport","18/04/2017"
"Wolverhampton City Council","http://opendatacommunities.org/id/metropolitan-district-council/wolverhampton","Amazon UK Marketplace","33.10","Adoption and Residence Team & Allowances","5942","Computing - Purchase of Hardware","17/04/2017"
"Wolverhampton City Council","http://opendatacommunities.org/id/metropolitan-district-council/wolverhampton","TOOLSTATION LTD","32.79","Public Conveniences","5251","Equipment - Purchase","17/04/2017"
"Wolverhampton City Council","http://opendatacommunities.org/id/metropolitan-district-council/wolverhampton","ARGOS LTD","63.31","Wolverhampton Indoor and Open Market","5310","Equipment - Purchase","17/04/2017"
"Wolverhampton City Council","http://opendatacommunities.org/id/metropolitan-district-council/wolverhampton","AMZ TriStar Electronic","-52.91","Towers Outdoor Education Centre","5999","Equipment - Purchase","17/04/2017"
"Wolverhampton City Council","http://opendatacommunities.org/id/metropolitan-district-council/wolverhampton","ASDA HOME SHOPPING","103.63","Ernest Bold Court","5411","Provisions (Not for resale)","17/04/2017"
"Wolverhampton City Council","http://opendatacommunities.org/id/metropolitan-district-council/wolverhampton","W M MORRISON PLC","21.46","Ernest Bold Court","5411","Provisions (Not for resale)","17/04/2017"
"Wolverhampton City Council","http://opendatacommunities.org/id/metropolitan-district-council/wolverhampton","Wolverhampton Fair Tra","51.30","Civic Centre Catering","5411","Provisions (Not for resale)","17/04/2017"
"Wolverhampton City Council","http://opendatacommunities.org/id/metropolitan-district-council/wolverhampton","SAINSBURYS 2040","12.50","Ernest Bold Court","5411","Equipment - Health and Safety","17/04/2017"
"Wolverhampton City Council","http://opendatacommunities.org/id/metropolitan-district-council/wolverhampton","LOOP11.COM","163.89","City Direct","7372","Computing - Purchase of Software","17/04/2017"
"Wolverhampton City Council","http://opendatacommunities.org/id/metropolitan-district-council/wolverhampton","NOTEMACHINE","100.00","Childrens with Disabilities Team","6011","No Recourse to Public Funds","14/04/2017"
"Wolverhampton City Council","http://opendatacommunities.org/id/metropolitan-district-council/wolverhampton","ARGOS LTD","-15.99","LAC Transitions Team","5310","Equipment - Purchase","14/04/2017"
"Wolverhampton City Council","http://opendatacommunities.org/id/metropolitan-district-council/wolverhampton","POST OFFICE COUNTER","15.80","Adoption and Residence Team & Allowances","9402","Comms - Postage","14/04/2017"
"Wolverhampton City Council","http://opendatacommunities.org/id/metropolitan-district-council/wolverhampton","Amazon UK Marketplace","21.50","Adoption and Residence Team & Allowances","5942","Books","14/04/2017"
"Wolverhampton City Council","http://opendatacommunities.org/id/metropolitan-district-council/wolverhampton","AMAZON UK RETAIL AMAZO","14.14","Headstart Phase 3","5999","Equipment - Purchase","14/04/2017"
"Wolverhampton City Council","http://opendatacommunities.org/id/metropolitan-district-council/wolverhampton","WWW.POWERHOUSEDIRECT.C","92.37","Central Baths","5199","Equipment - Purchase","14/04/2017"
"Wolverhampton City Council","http://opendatacommunities.org/id/metropolitan-district-council/wolverhampton","WWW.LEWIS-PLAST.CO.UK","104.95","Central Baths","5047","Services - Professional Fees","14/04/2017"
"Wolverhampton City Council","http://opendatacommunities.org/id/metropolitan-district-council/wolverhampton","Virgin Trains","80.70","LAC Team","4112","Public Transport","14/04/2017"
"Wolverhampton City Council","http://opendatacommunities.org/id/metropolitan-district-council/wolverhampton","EBUYER (UK) LTD","35.86","Central Costs","5722","Equipment - Purchase","14/04/2017"
"Wolverhampton City Council","http://opendatacommunities.org/id/metropolitan-district-council/wolverhampton","ROADCHEF M SERV UPAY L","11.13","Headstart Phase 3","5812","Subsistence","14/04/2017"
"Wolverhampton City Council","http://opendatacommunities.org/id/metropolitan-district-council/wolverhampton","SCREWFIX DIRECT LT","22.23","Civic Centre","5211","Equipment - Purchase","14/04/2017"
"Wolverhampton City Council","http://opendatacommunities.org/id/metropolitan-district-council/wolverhampton","123-REG.CO.UK","8.98","Technical Support","4816","Computing - Purchase of Software","14/04/2017"
"Wolverhampton City Council","http://opendatacommunities.org/id/metropolitan-district-council/wolverhampton","Amazon UK Marketplace","9.53","Global Budgets","5942","Books","14/04/2017"
"Wolverhampton City Council","http://opendatacommunities.org/id/metropolitan-district-council/wolverhampton","ARGOS LTD","215.81","LAC Transitions Team","5310","Client Allowances","14/04/2017"
"Wolverhampton City Council","http://opendatacommunities.org/id/metropolitan-district-council/wolverhampton","TVLICENSING.CO.UK","122.50","LAC Transitions Team","7392","Client Allowances","14/04/2017"
"Wolverhampton City Council","http://opendatacommunities.org/id/metropolitan-district-council/wolverhampton","TVLICENSING.CO.UK","122.50","LAC Transitions Team","7392","Client Allowances","14/04/2017"
"Wolverhampton City Council","http://opendatacommunities.org/id/metropolitan-district-council/wolverhampton","SURVEYMONKEY.COM","250.00","Head Start (Digital Strand)","5968","Subscriptions","14/04/2017"
"Wolverhampton City Council","http://opendatacommunities.org/id/metropolitan-district-council/wolverhampton","SQUARESPACE INC.","189.50","Learning Technologies","7372","Computing - Purchase of Software","14/04/2017"
"Wolverhampton City Council","http://opendatacommunities.org/id/metropolitan-district-council/wolverhampton","Amazon EU","390.00","Welfare Rights","5969","Books","14/04/2017"
"Wolverhampton City Council","http://opendatacommunities.org/id/metropolitan-district-council/wolverhampton","AA MEMBERSHIP R/T","156.04","Fleet Management","5968","Equipment - Purchase","14/04/2017"
"Wolverhampton City Council","http://opendatacommunities.org/id/metropolitan-district-council/wolverhampton","CT WOLVERHAMPTON","57.50","CIN/CP Social Work Unit - Area 1","8398","Section 17","14/04/2017"
"Wolverhampton City Council","http://opendatacommunities.org/id/metropolitan-district-council/wolverhampton","PREMIER APARTMENTS BIR","799.85","CIN/CP Social Work Unit - Area 6","7011","Accommodation Costs","14/04/2017"
"Wolverhampton City Council","http://opendatacommunities.org/id/metropolitan-district-council/wolverhampton","ALDI","24.79","LAC Transitions Team","5411","Client Allowances","14/04/2017"
"Wolverhampton City Council","http://opendatacommunities.org/id/metropolitan-district-council/wolverhampton","SAINSBURYS 2040","21.42","LAC Transitions Team","5411","Client Allowances","14/04/2017"
"Wolverhampton City Council","http://opendatacommunities.org/id/metropolitan-district-council/wolverhampton","EAST & WEST AID","60.00","CIN/CP Social Work Unit - Area 3","8398","Provisions (Not for resale)","14/04/2017"
"Wolverhampton City Council","http://opendatacommunities.org/id/metropolitan-district-council/wolverhampton","TFM FARM & COUNTRY SUP","202.94","Northicote Farm","5399","Materials","14/04/2017"
"Wolverhampton City Council","http://opendatacommunities.org/id/metropolitan-district-council/wolverhampton","BARCLAYS BANK PLC","100.00","Duke Street Bungalows","6011","Public Transport","13/04/2017"
"Wolverhampton City Council","http://opendatacommunities.org/id/metropolitan-district-council/wolverhampton","STATION HOTEL,","321.00","CIN/CP Social Work Unit - Area 7","7011","Services - Supplies & Services to users","13/04/2017"
"Wolverhampton City Council","http://opendatacommunities.org/id/metropolitan-district-council/wolverhampton","REGISTRARS OFFICE","30.00","Head of Service - CINCP","8299","Services - Professional Fees","13/04/2017"
"Wolverhampton City Council","http://opendatacommunities.org/id/metropolitan-district-council/wolverhampton","ARGOS RETAIL GROUP","106.93","CIN/CP Social Work Unit - Area 4","5310","Equipment - Purchase","13/04/2017"
"Wolverhampton City Council","http://opendatacommunities.org/id/metropolitan-district-council/wolverhampton","HOLIDAY INNS","195.83","Adoption and Residence Team & Allowances","3501","Accommodation Costs","13/04/2017"
"Wolverhampton City Council","http://opendatacommunities.org/id/metropolitan-district-council/wolverhampton","WWW.ARGOS.CO.UK","343.93","CIN/CP Social Work Unit - Area 6","5310","Furniture","13/04/2017"
"Wolverhampton City Council","http://opendatacommunities.org/id/metropolitan-district-council/wolverhampton","BARCLAYS BANK PLC","250.00","CIN/CP Social Work Unit - Area 6","6011","Financial Assistance In Exceptional Circ","13/04/2017"
"Wolverhampton City Council","http://opendatacommunities.org/id/metropolitan-district-council/wolverhampton","GCL760R","147.05","Delivery & OCE Development","7011","Services - Supplies & Services to users","13/04/2017"
"Wolverhampton City Council","http://opendatacommunities.org/id/metropolitan-district-council/wolverhampton","GCL760R","580.00","Delivery & OCE Development","7011","Accommodation Costs","13/04/2017"
"Wolverhampton City Council","http://opendatacommunities.org/id/metropolitan-district-council/wolverhampton","AMAZON UK RETAIL AMAZO","72.76","EIP Locality 7","5999","Equipment - Purchase","13/04/2017"
"Wolverhampton City Council","http://opendatacommunities.org/id/metropolitan-district-council/wolverhampton","WICKES BUILDING","171.99","Technical Material","5211","Materials","13/04/2017"
"Wolverhampton City Council","http://opendatacommunities.org/id/metropolitan-district-council/wolverhampton","TESCO PFS 2185","10.13","Northicote Farm","5541","Petrol","13/04/2017"
"Wolverhampton City Council","http://opendatacommunities.org/id/metropolitan-district-council/wolverhampton","ASDA HOME SHOPPING","302.09","Upper Pendeford Farm Childrens Home","5411","Provisions (Not for resale)","13/04/2017"
"Wolverhampton City Council","http://opendatacommunities.org/id/metropolitan-district-council/wolverhampton","ASDA SUPERSTORE","29.50","EIP Locality 5","5411","Provisions (Not for resale)","13/04/2017"
"Wolverhampton City Council","http://opendatacommunities.org/id/metropolitan-district-council/wolverhampton","UPPERCRUST BARRIERLINE","6.24","Headstart Phase 3","5814","Subsistence","13/04/2017"
"Wolverhampton City Council","http://opendatacommunities.org/id/metropolitan-district-council/wolverhampton","TAXI FARE BY VERIFONE","15.62","Headstart Phase 3","4121","Client Transport","13/04/2017"
"Wolverhampton City Council","http://opendatacommunities.org/id/metropolitan-district-council/wolverhampton","NOMAD WEST COAST L","4.17","Headstart Phase 3","4816","Computing - Purchase of Software","13/04/2017"
"Wolverhampton City Council","http://opendatacommunities.org/id/metropolitan-district-council/wolverhampton","CARVER/WOLVERHAMPTON/L","51.74","Hickman Avenue Depot","5211","R&M - Departmental planned (external)","13/04/2017"
"Wolverhampton City Council","http://opendatacommunities.org/id/metropolitan-district-council/wolverhampton","Amazon UK Marketplace","20.62","EIP Locality 2","5942","Books","13/04/2017"
"Wolverhampton City Council","http://opendatacommunities.org/id/metropolitan-district-council/wolverhampton","WEST MID TRAVEL","446.85","Community Enablement","4131","Public Transport","13/04/2017"
"Wolverhampton City Council","http://opendatacommunities.org/id/metropolitan-district-council/wolverhampton","Amazon UK Marketplace","4.96","Global Budgets","5942","Books","13/04/2017"
"Wolverhampton City Council","http://opendatacommunities.org/id/metropolitan-district-council/wolverhampton","Amazon UK Marketplace","6.59","Global Budgets","5942","Books","13/04/2017"
"Wolverhampton City Council","http://opendatacommunities.org/id/metropolitan-district-council/wolverhampton","Virgin Trains","94.85","Members Expenses","4112","Public Transport","13/04/2017"
"Wolverhampton City Council","http://opendatacommunities.org/id/metropolitan-district-council/wolverhampton","PAYPAL  UES LIMITED","-6.50","EIP Locality 6","5621","Equipment - Purchase","13/04/2017"
"Wolverhampton City Council","http://opendatacommunities.org/id/metropolitan-district-council/wolverhampton","WM MORRISONS","29.95","EIP Locality 6","5411","Provisions (Not for resale)","13/04/2017"
"Wolverhampton City Council","http://opendatacommunities.org/id/metropolitan-district-council/wolverhampton","BCC REGISTER OFFIC","55.00","Adoption and Residence Team & Allowances","9399","Services - Fees and Charges","13/04/2017"
"Wolverhampton City Council","http://opendatacommunities.org/id/metropolitan-district-council/wolverhampton","Amazon UK Marketplace","1.49","Adoption and Residence Team & Allowances","5942","Books","13/04/2017"
"Wolverhampton City Council","http://opendatacommunities.org/id/metropolitan-district-council/wolverhampton","WIGAN COUNCIL","15.23","Adoption and Residence Team & Allowances","9399","Services - Fees and Charges","13/04/2017"
"Wolverhampton City Council","http://opendatacommunities.org/id/metropolitan-district-council/wolverhampton","PC WORLD ONLINE","291.66","The Little Civic","5732","Equipment - Purchase","13/04/2017"
"Wolverhampton City Council","http://opendatacommunities.org/id/metropolitan-district-council/wolverhampton","ARGOS LTD","-24.97","Headstart Phase 3","5310","Equipment - Purchase","13/04/2017"
"Wolverhampton City Council","http://opendatacommunities.org/id/metropolitan-district-council/wolverhampton","AMAZON UK RETAIL AMAZO","223.49","Headstart Phase 3","5999","Equipment - Purchase","13/04/2017"
"Wolverhampton City Council","http://opendatacommunities.org/id/metropolitan-district-council/wolverhampton","HOVER","8.29","Headstart Phase 3","7372","Computing - Purchase of Software","13/04/2017"
"Wolverhampton City Council","http://opendatacommunities.org/id/metropolitan-district-council/wolverhampton","PREMIER INN","946.60","Strategic ICTS (ICT Serv Budget)","3811","Conference Expenses","13/04/2017"
"Wolverhampton City Council","http://opendatacommunities.org/id/metropolitan-district-council/wolverhampton","CMPCARESHOP","10.54","Central Baths","5331","Equipment - Purchase","13/04/2017"
"Wolverhampton City Council","http://opendatacommunities.org/id/metropolitan-district-council/wolverhampton","ASDA HOME SHOPPING","-2.00","Upper Pendeford Farm Childrens Home","5411","Provisions (Not for resale)","13/04/2017"
"Wolverhampton City Council","http://opendatacommunities.org/id/metropolitan-district-council/wolverhampton","ASDA HOME SHOPPING","-1.55","Upper Pendeford Farm Childrens Home","5411","Provisions (Not for resale)","13/04/2017"
"Wolverhampton City Council","http://opendatacommunities.org/id/metropolitan-district-council/wolverhampton","E01353600000000","100.00","Childrens with Disabilities Team","6011","No Recourse to Public Funds","13/04/2017"
"Wolverhampton City Council","http://opendatacommunities.org/id/metropolitan-district-council/wolverhampton","E01353600000000","200.00","Childrens with Disabilities Team","6011","No Recourse to Public Funds","13/04/2017"
"Wolverhampton City Council","http://opendatacommunities.org/id/metropolitan-district-council/wolverhampton","HOLIDAY EXTRAS","75.40","Leonardo Da Vinci Project","4722","Public Transport","13/04/2017"
"Wolverhampton City Council","http://opendatacommunities.org/id/metropolitan-district-council/wolverhampton","Trainline","186.05","Public Health Support Costs","4112","Public Transport","12/04/2017"
"Wolverhampton City Council","http://opendatacommunities.org/id/metropolitan-district-council/wolverhampton","CAR PARKING OFFICE","5.60","Direct Delivery Team ( L. & D.)","7523","Car Allowances","12/04/2017"
"Wolverhampton City Council","http://opendatacommunities.org/id/metropolitan-district-council/wolverhampton","Amazon UK Marketplace","76.26","Language Studies Delivery Area","5942","Books","12/04/2017"
"Wolverhampton City Council","http://opendatacommunities.org/id/metropolitan-district-council/wolverhampton","ACYBA","94.06","ICT Services","7372","Computing - Purchase of Software","12/04/2017"
"Wolverhampton City Council","http://opendatacommunities.org/id/metropolitan-district-council/wolverhampton","HUGHES","267.20","LAC Transitions Team","5732","Client Allowances","12/04/2017"
"Wolverhampton City Council","http://opendatacommunities.org/id/metropolitan-district-council/wolverhampton","HUGHES","263.32","LAC Transitions Team","5732","Client Allowances","12/04/2017"
"Wolverhampton City Council","http://opendatacommunities.org/id/metropolitan-district-council/wolverhampton","PRET A MANGER","10.29","Headstart Phase 3","5812","Subsistence","12/04/2017"
"Wolverhampton City Council","http://opendatacommunities.org/id/metropolitan-district-council/wolverhampton","TAXI FARE BY VERIFONE","12.32","Headstart Phase 3","4121","Client Transport","12/04/2017"
"Wolverhampton City Council","http://opendatacommunities.org/id/metropolitan-district-council/wolverhampton","TAXI FARE BY VERIFONE","19.14","Headstart Phase 3","4121","Client Transport","12/04/2017"
"Wolverhampton City Council","http://opendatacommunities.org/id/metropolitan-district-council/wolverhampton","CT WOLVERHAMPTON","12.50","EIP Locality 1","8398","Services - Supplies & Services to users","12/04/2017"
"Wolverhampton City Council","http://opendatacommunities.org/id/metropolitan-district-council/wolverhampton","CT WOLVERHAMPTON","70.83","EIP Locality 1","8398","Services - Supplies & Services to users","12/04/2017"
"Wolverhampton City Council","http://opendatacommunities.org/id/metropolitan-district-council/wolverhampton","ASDA STORES 4452","46.39","EIP Locality 1","5411","Financial Assistance In Exceptional Circ","12/04/2017"
"Wolverhampton City Council","http://opendatacommunities.org/id/metropolitan-district-council/wolverhampton","JOE'S NEWS & WINE 2550","60.30","EIP Locality 1","5411","Financial Assistance In Exceptional Circ","12/04/2017"
"Wolverhampton City Council","http://opendatacommunities.org/id/metropolitan-district-council/wolverhampton","Amazon UK Marketplace","23.33","EIP Locality 2","5942","Books","12/04/2017"
"Wolverhampton City Council","http://opendatacommunities.org/id/metropolitan-district-council/wolverhampton","Amazon UK Marketplace","4.17","EIP Locality 2","5942","Books","12/04/2017"
"Wolverhampton City Council","http://opendatacommunities.org/id/metropolitan-district-council/wolverhampton","FSPRG.COM INFFUSE.COM","5.05","Technical Support","5734","Computing - Purchase of Software","12/04/2017"
"Wolverhampton City Council","http://opendatacommunities.org/id/metropolitan-district-council/wolverhampton","TRAINLINE","-172.00","Strategic Asset Management Team","4112","Public Transport","12/04/2017"
"Wolverhampton City Council","http://opendatacommunities.org/id/metropolitan-district-council/wolverhampton","POSTURITE (UK) LTD","56.83","Strategic Director Place","5021","Furniture","12/04/2017"
"Wolverhampton City Council","http://opendatacommunities.org/id/metropolitan-district-council/wolverhampton","HOME BARGAINS","4.80","Headstart Phase 3","5251","Cleaning Supplies and Materials","12/04/2017"
"Wolverhampton City Council","http://opendatacommunities.org/id/metropolitan-district-council/wolverhampton","ARGOS LTD","24.97","Headstart Phase 3","5310","Equipment - Purchase","12/04/2017"
"Wolverhampton City Council","http://opendatacommunities.org/id/metropolitan-district-council/wolverhampton","ARGOS LTD","295.76","Headstart Phase 3","5310","Equipment - Purchase","12/04/2017"
"Wolverhampton City Council","http://opendatacommunities.org/id/metropolitan-district-council/wolverhampton","CARDINAL EDUCATION","14.45","Headstart Phase 3","5945","Equipment - Purchase","12/04/2017"
"Wolverhampton City Council","http://opendatacommunities.org/id/metropolitan-district-council/wolverhampton","SCREWFIX WOLVERHAM","38.03","Public Conveniences","5211","Equipment - Purchase","12/04/2017"
"Wolverhampton City Council","http://opendatacommunities.org/id/metropolitan-district-council/wolverhampton","VUE ITCERTIFICATIONVUE","135.60","Strategic ICTS (ICT Serv Budget)","8299","Training Expenses","12/04/2017"
"Wolverhampton City Council","http://opendatacommunities.org/id/metropolitan-district-council/wolverhampton","Virgin Trains","160.00","Delivery & OCE Development","4112","Public Transport","12/04/2017"
"Wolverhampton City Council","http://opendatacommunities.org/id/metropolitan-district-council/wolverhampton","ASDA SUPERSTORE","100.00","CIN/CP Social Work Unit - Area 3","5411","Provisions (Not for resale)","12/04/2017"
"Wolverhampton City Council","http://opendatacommunities.org/id/metropolitan-district-council/wolverhampton","ASDA SUPERSTORE","200.00","CIN/CP Social Work Unit - Area 3","5411","Provisions (Not for resale)","12/04/2017"
"Wolverhampton City Council","http://opendatacommunities.org/id/metropolitan-district-council/wolverhampton","POST OFFICE COUNTER","46.00","CIN/CP Social Work Unit - Area 3","9402","Comms - Postage","12/04/2017"
"Wolverhampton City Council","http://opendatacommunities.org/id/metropolitan-district-council/wolverhampton","NOMAD WEST COAST L","4.17","Headstart Phase 3","4816","Computing - Purchase of Software","12/04/2017"
"Wolverhampton City Council","http://opendatacommunities.org/id/metropolitan-district-council/wolverhampton","POST OFFICE COUNTER","130.00","Safeguarding Board - Adults","9402","Comms - Postage","12/04/2017"
"Wolverhampton City Council","http://opendatacommunities.org/id/metropolitan-district-council/wolverhampton","Virgin Trains","34.00","Strategic Asset Management - General","4112","Public Transport","12/04/2017"
"Wolverhampton City Council","http://opendatacommunities.org/id/metropolitan-district-council/wolverhampton","WWW.OFFICEFURNITUREONL","79.20","Learning Technologies","5712","Equipment - Purchase","12/04/2017"
"Wolverhampton City Council","http://opendatacommunities.org/id/metropolitan-district-council/wolverhampton","ASDA HOME SHOPPING","94.08","Ernest Bold Court","5411","Provisions (Not for resale)","12/04/2017"
"Wolverhampton City Council","http://opendatacommunities.org/id/metropolitan-district-council/wolverhampton","PREMIER INN","50.82","Education Business Partnership","3811","Services - Supplies & Services to users","12/04/2017"
"Wolverhampton City Council","http://opendatacommunities.org/id/metropolitan-district-council/wolverhampton","GTG TRAINING LTD","23.00","Civic Halls Non Direct Management A/C","5521","Services - Fees and Charges","12/04/2017"
"Wolverhampton City Council","http://opendatacommunities.org/id/metropolitan-district-council/wolverhampton","Trainline","33.00","CIN/CP Social Work Unit - Area 7","4112","Public Transport","12/04/2017"
"Wolverhampton City Council","http://opendatacommunities.org/id/metropolitan-district-council/wolverhampton","STATION HOTEL,","49.00","CIN/CP Social Work Unit - Area 7","7011","Services - Supplies & Services to users","12/04/2017"
"Wolverhampton City Council","http://opendatacommunities.org/id/metropolitan-district-council/wolverhampton","WEST COAST TRAINS","9.00","Road Safety","4112","Public Transport","12/04/2017"
"Wolverhampton City Council","http://opendatacommunities.org/id/metropolitan-district-council/wolverhampton","GRO HM PASSPORT OFFICE","-23.40","Head of Service - CINCP","9399","Services - Professional Fees","12/04/2017"
"Wolverhampton City Council","http://opendatacommunities.org/id/metropolitan-district-council/wolverhampton","GRO HM PASSPORT OFFICE","-23.40","Head of Service - CINCP","9399","Services - Professional Fees","12/04/2017"
"Wolverhampton City Council","http://opendatacommunities.org/id/metropolitan-district-council/wolverhampton","GRO HM PASSPORT OFFICE","-23.40","Head of Service - CINCP","9399","Services - Professional Fees","12/04/2017"
"Wolverhampton City Council","http://opendatacommunities.org/id/metropolitan-district-council/wolverhampton","AMFBOWLING.CO.UK","46.20","Intensive Family Support Team","7997","Educ Trips, Holidays, Outings, Activity","12/04/2017"
"Wolverhampton City Council","http://opendatacommunities.org/id/metropolitan-district-council/wolverhampton","Trainline","13.01","Legal Services","4112","Public Transport","12/04/2017"
"Wolverhampton City Council","http://opendatacommunities.org/id/metropolitan-district-council/wolverhampton","ASDA SUPERSTORE","10.00","Mayoral Expenses","5411","Hospitality","12/04/2017"
"Wolverhampton City Council","http://opendatacommunities.org/id/metropolitan-district-council/wolverhampton","Virgin Trains","193.00","Fostering Team & Allowances","4112","Public Transport","12/04/2017"
"Wolverhampton City Council","http://opendatacommunities.org/id/metropolitan-district-council/wolverhampton","CLOCKING SYSTEM","50.00","Parks - Ranger Service","5085","Materials","12/04/2017"
"Wolverhampton City Council","http://opendatacommunities.org/id/metropolitan-district-council/wolverhampton","Virgintrains.co.uk","-45.00","CIN/CP Social Work Unit - Area 1","4112","Section 17","12/04/2017"
"Wolverhampton City Council","http://opendatacommunities.org/id/metropolitan-district-council/wolverhampton","Virgin Trains","80.70","CIN/CP Social Work Unit - Area 2","4112","Section 17","12/04/2017"
"Wolverhampton City Council","http://opendatacommunities.org/id/metropolitan-district-council/wolverhampton","Virgin Trains","65.00","CIN/CP Social Work Unit - Area 2","4112","Section 17","12/04/2017"
"Wolverhampton City Council","http://opendatacommunities.org/id/metropolitan-district-council/wolverhampton","Amazon UK Marketplace","30.94","EIP Locality 7","5942","Equipment - Purchase","12/04/2017"
"Wolverhampton City Council","http://opendatacommunities.org/id/metropolitan-district-council/wolverhampton","Trainline","39.47","AES Staff Development","4112","Public Transport","12/04/2017"
"Wolverhampton City Council","http://opendatacommunities.org/id/metropolitan-district-council/wolverhampton","WWW.REDSPOTTEDHANK","195.30","Macmillan Welfare Rights","4112","Public Transport","12/04/2017"
"Wolverhampton City Council","http://opendatacommunities.org/id/metropolitan-district-council/wolverhampton","HIGHFIELD HOUSE HO","285.00","CIN/CP Social Work Unit - Area 3","7011","No Recourse to Public Funds","12/04/2017"
"Wolverhampton City Council","http://opendatacommunities.org/id/metropolitan-district-council/wolverhampton","WWW.ASDA-PHOTO.CO.UK","153.75","Headstart Phase 3","2741","Marketing \ Non-staff advertising","11/04/2017"
"Wolverhampton City Council","http://opendatacommunities.org/id/metropolitan-district-council/wolverhampton","WWWBHANGRABLAZECOM","20.00","WV Active Business Support","7997","Services - Professional Fees","11/04/2017"
"Wolverhampton City Council","http://opendatacommunities.org/id/metropolitan-district-council/wolverhampton","LIDL UK","19.91","Creative Studies Delivery Area","5411","Materials","11/04/2017"
"Wolverhampton City Council","http://opendatacommunities.org/id/metropolitan-district-council/wolverhampton","SPEEDY ASSET SRVCS","400.00","Central Costs","7394","Equipment - Purchase","11/04/2017"
"Wolverhampton City Council","http://opendatacommunities.org/id/metropolitan-district-council/wolverhampton","WOLVERHAMPTON CC","3.33","Headstart Phase 3","7523","Parking Fees","11/04/2017"
"Wolverhampton City Council","http://opendatacommunities.org/id/metropolitan-district-council/wolverhampton","LIDDELL ELECTRICAL DIS","18.00","Culwell Street Depot","5065","R&M - Departmental planned (external)","11/04/2017"
"Wolverhampton City Council","http://opendatacommunities.org/id/metropolitan-district-council/wolverhampton","WILKO.COM","134.00","MASH","5722","Stationery","11/04/2017"
"Wolverhampton City Council","http://opendatacommunities.org/id/metropolitan-district-council/wolverhampton","WEST COAST TRAINS","105.00","LAC Transitions Team","4112","Client Allowances","11/04/2017"
"Wolverhampton City Council","http://opendatacommunities.org/id/metropolitan-district-council/wolverhampton","SQUARESPACE INC.","159.57","Learning Technologies","7372","Computing - Purchase of Software","11/04/2017"
"Wolverhampton City Council","http://opendatacommunities.org/id/metropolitan-district-council/wolverhampton","Amazon UK Marketplace","5.77","Global Budgets","5942","Books","11/04/2017"
"Wolverhampton City Council","http://opendatacommunities.org/id/metropolitan-district-council/wolverhampton","B & Q 1243","5.00","Learning Disabilities Management","5211","Equipment - R & M","11/04/2017"
"Wolverhampton City Council","http://opendatacommunities.org/id/metropolitan-district-council/wolverhampton","B & Q 1243","23.33","Learning Disabilities Management","5211","Equipment - R & M","11/04/2017"
"Wolverhampton City Council","http://opendatacommunities.org/id/metropolitan-district-council/wolverhampton","VWO.com","49.11","City Direct","7399","Equipment - Purchase","11/04/2017"
"Wolverhampton City Council","http://opendatacommunities.org/id/metropolitan-district-council/wolverhampton","CO-OPERATIVE TRAVE","1500.00","Leonardo Da Vinci Project","4722","Public Transport","11/04/2017"
"Wolverhampton City Council","http://opendatacommunities.org/id/metropolitan-district-council/wolverhampton","CO-OPERATIVE TRAVE","1393.81","Leonardo Da Vinci Project","4722","Public Transport","11/04/2017"
"Wolverhampton City Council","http://opendatacommunities.org/id/metropolitan-district-council/wolverhampton","WWW.WMCA.CO.UK","288.00","CIN/CP Social Work Unit - Area 5","9399","No Recourse to Public Funds","11/04/2017"
"Wolverhampton City Council","http://opendatacommunities.org/id/metropolitan-district-council/wolverhampton","ROYAL CARPETS","458.33","LAC Transitions Team","5713","Client Allowances","11/04/2017"
"Wolverhampton City Council","http://opendatacommunities.org/id/metropolitan-district-council/wolverhampton","CARESHOP","96.54","Specialist Support Service - North","5999","Cleaning Supplies and Materials","11/04/2017"
"Wolverhampton City Council","http://opendatacommunities.org/id/metropolitan-district-council/wolverhampton","PURE360","448.00","Audience Development","7372","Marketing \ Non-staff advertising","11/04/2017"
"Wolverhampton City Council","http://opendatacommunities.org/id/metropolitan-district-council/wolverhampton","PURE360","1360.00","Audience Development","7372","Marketing \ Non-staff advertising","11/04/2017"
"Wolverhampton City Council","http://opendatacommunities.org/id/metropolitan-district-council/wolverhampton","GRO HM PASSPORT OFFICE","117.00","Head of Service - CINCP","9399","Services - Professional Fees","11/04/2017"
"Wolverhampton City Council","http://opendatacommunities.org/id/metropolitan-district-council/wolverhampton","WAITROSE 696","6.67","Mayoral Expenses","5411","Materials","11/04/2017"
"Wolverhampton City Council","http://opendatacommunities.org/id/metropolitan-district-council/wolverhampton","WAITROSE 696","6.00","Mayoral Expenses","5411","Hospitality","11/04/2017"
"Wolverhampton City Council","http://opendatacommunities.org/id/metropolitan-district-council/wolverhampton","Trainline","112.20","Delivery & OCE Development","4112","Public Transport","11/04/2017"
"Wolverhampton City Council","http://opendatacommunities.org/id/metropolitan-district-council/wolverhampton","ARNOLD LAVER ANS","129.77","Charlotte Hodes","5211","Materials","11/04/2017"
"Wolverhampton City Council","http://opendatacommunities.org/id/metropolitan-district-council/wolverhampton","Virgintrains.co.uk","-44.10","Members Expenses","4112","Public Transport","11/04/2017"
"Wolverhampton City Council","http://opendatacommunities.org/id/metropolitan-district-council/wolverhampton","Amazon UK Marketplace","240.95","Technical Support","5942","Storage","10/04/2017"
"Wolverhampton City Council","http://opendatacommunities.org/id/metropolitan-district-council/wolverhampton","HM PASSPORT OFFICE","230.00","LAC Team","9399","Financial Assistance In Exceptional Circ","10/04/2017"
"Wolverhampton City Council","http://opendatacommunities.org/id/metropolitan-district-council/wolverhampton","TVLICENSING.CO.UK","147.00","LAC Transitions Team","7392","Client Allowances","10/04/2017"
"Wolverhampton City Council","http://opendatacommunities.org/id/metropolitan-district-council/wolverhampton","ASDA HOME SHOPPING","-2.02","Ernest Bold Court","5411","Provisions (Not for resale)","10/04/2017"
"Wolverhampton City Council","http://opendatacommunities.org/id/metropolitan-district-council/wolverhampton","ASDA HOME SHOPPING","88.31","Ernest Bold Court","5411","Provisions (Not for resale)","10/04/2017"
"Wolverhampton City Council","http://opendatacommunities.org/id/metropolitan-district-council/wolverhampton","AMAZON UK RETAIL AMAZO","38.98","Inclusion Support","5999","Books","10/04/2017"
"Wolverhampton City Council","http://opendatacommunities.org/id/metropolitan-district-council/wolverhampton","Amazon UK Marketplace","37.50","Environmental Health - Pub Prot - Gen","5942","Equipment - Purchase","10/04/2017"
"Wolverhampton City Council","http://opendatacommunities.org/id/metropolitan-district-council/wolverhampton","Amazon UK Marketplace","79.84","Environmental Health - Pub Prot - Gen","5942","Equipment - Purchase","10/04/2017"
"Wolverhampton City Council","http://opendatacommunities.org/id/metropolitan-district-council/wolverhampton","PP THEWAY YZ","39.00","CIN/CP Social Work Unit - Area 5","8398","Section 17","10/04/2017"
"Wolverhampton City Council","http://opendatacommunities.org/id/metropolitan-district-council/wolverhampton","B&M RETAIL LTD","47.43","LAC Transitions Team","5310","Client Allowances","10/04/2017"
"Wolverhampton City Council","http://opendatacommunities.org/id/metropolitan-district-council/wolverhampton","ARGOS LTD","134.42","LAC Transitions Team","5310","Client Allowances","10/04/2017"
"Wolverhampton City Council","http://opendatacommunities.org/id/metropolitan-district-council/wolverhampton","B&M RETAIL LTD","125.01","LAC Transitions Team","5310","Client Allowances","10/04/2017"
"Wolverhampton City Council","http://opendatacommunities.org/id/metropolitan-district-council/wolverhampton","ISO/CS","47.89","Expenditure","2741","Publications","10/04/2017"
"Wolverhampton City Council","http://opendatacommunities.org/id/metropolitan-district-council/wolverhampton","POUNDLAND LTD 1463","12.10","Foundation Studies","5310","Equipment - Purchase","10/04/2017"
"Wolverhampton City Council","http://opendatacommunities.org/id/metropolitan-district-council/wolverhampton","POUNDLAND LTD 1463","12.10","Foundation Studies","5310","Equipment - Purchase","10/04/2017"
"Wolverhampton City Council","http://opendatacommunities.org/id/metropolitan-district-council/wolverhampton","AMAZON UK RETAIL AMAZO","54.16","Central Costs","5999","Equipment - Purchase","10/04/2017"
"Wolverhampton City Council","http://opendatacommunities.org/id/metropolitan-district-council/wolverhampton","AMAZON UK RETAIL AMAZO","27.36","Language Studies Delivery Area","5999","Equipment - Purchase","10/04/2017"
"Wolverhampton City Council","http://opendatacommunities.org/id/metropolitan-district-council/wolverhampton","PREMIER INN","91.66","Headstart Phase 3","3811","Accommodation Costs","10/04/2017"
"Wolverhampton City Council","http://opendatacommunities.org/id/metropolitan-district-council/wolverhampton","WM MORRISON 024","200.00","CIN/CP Social Work Unit - Area 2","5411","Section 17","10/04/2017"
"Wolverhampton City Council","http://opendatacommunities.org/id/metropolitan-district-council/wolverhampton","SAINSBURYS 2040","52.75","Duke Street Bungalows","5411","Provisions (Not for resale)","10/04/2017"
"Wolverhampton City Council","http://opendatacommunities.org/id/metropolitan-district-council/wolverhampton","E01510300000000","100.00","MASH","6011","Section 17","10/04/2017"
"Wolverhampton City Council","http://opendatacommunities.org/id/metropolitan-district-council/wolverhampton","SAINSBURYS","50.00","Duke Street Bungalows","6011","Financial Assistance In Exceptional Circ","10/04/2017"
"Wolverhampton City Council","http://opendatacommunities.org/id/metropolitan-district-council/wolverhampton","PAYPAL  123REGLIMIT","15.98","Technical Support","4816","Computing - Purchase of Software","10/04/2017"
"Wolverhampton City Council","http://opendatacommunities.org/id/metropolitan-district-council/wolverhampton","Amazon UK Marketplace","149.95","Technical Support","5942","Storage","10/04/2017"
"Wolverhampton City Council","http://opendatacommunities.org/id/metropolitan-district-council/wolverhampton","AMAZON UK RETAIL AMAZO","15.33","EIP Locality 8","5999","Equipment - Purchase","10/04/2017"
"Wolverhampton City Council","http://opendatacommunities.org/id/metropolitan-district-council/wolverhampton","Amazon UK Marketplace","11.63","EIP Locality 8","5942","Equipment - Purchase","10/04/2017"
"Wolverhampton City Council","http://opendatacommunities.org/id/metropolitan-district-council/wolverhampton","WOLVERHAMPTON SELF STO","78.00","EIP Locality 8","4214","Grant Payments","10/04/2017"
"Wolverhampton City Council","http://opendatacommunities.org/id/metropolitan-district-council/wolverhampton","ROYAL BK OF SCOTLAND","200.00","Headstart Phase 3","6011","Financial Assistance In Exceptional Circ","10/04/2017"
"Wolverhampton City Council","http://opendatacommunities.org/id/metropolitan-district-council/wolverhampton","CROWN DECORATING CENTR","15.86","Public Conveniences","1520","Equipment - Purchase","10/04/2017"
"Wolverhampton City Council","http://opendatacommunities.org/id/metropolitan-district-council/wolverhampton","ARGOS LTD","282.54","Strategic ICTS (ICT Serv Budget)","5310","Equipment - Purchase","10/04/2017"
"Wolverhampton City Council","http://opendatacommunities.org/id/metropolitan-district-council/wolverhampton","Amazon UK Marketplace","25.15","Strategic ICTS (ICT Serv Budget)","5942","Computing - Purchase of Hardware","10/04/2017"
"Wolverhampton City Council","http://opendatacommunities.org/id/metropolitan-district-council/wolverhampton","PAYPAL  ROYAL MAIL","3.82","Strategic ICTS (ICT Serv Budget)","8999","Comms - Postage","10/04/2017"
"Wolverhampton City Council","http://opendatacommunities.org/id/metropolitan-district-council/wolverhampton","ARGOS RETAIL GROUP","23.97","Central Baths","5310","Equipment - Purchase","10/04/2017"
"Wolverhampton City Council","http://opendatacommunities.org/id/metropolitan-district-council/wolverhampton","ARGOS LTD","39.99","LAC Transitions Team","5310","Client Allowances","10/04/2017"
"Wolverhampton City Council","http://opendatacommunities.org/id/metropolitan-district-council/wolverhampton","BRITANNIA","160.00","The Little Civic","7011","Services - Professional Fees","10/04/2017"
"Wolverhampton City Council","http://opendatacommunities.org/id/metropolitan-district-council/wolverhampton","REGISTRARS OFFICE","60.00","Head of Service - CINCP","8299","Services - Professional Fees","10/04/2017"
"Wolverhampton City Council","http://opendatacommunities.org/id/metropolitan-district-council/wolverhampton","DUNELM (SOFT FURNISHIN","149.97","Ernest Bold Court","5714","Equipment - Purchase","10/04/2017"
"Wolverhampton City Council","http://opendatacommunities.org/id/metropolitan-district-council/wolverhampton","G & M HALE LTD","16.25","Service Wide","5992","Materials","10/04/2017"
"Wolverhampton City Council","http://opendatacommunities.org/id/metropolitan-district-council/wolverhampton","ADAMS FURNITURE","370.00","Fostering Team & Allowances","5713","Equipment - Purchase","10/04/2017"
"Wolverhampton City Council","http://opendatacommunities.org/id/metropolitan-district-council/wolverhampton","THE RANGE","66.65","LAC Transitions Team","5311","Client Allowances","10/04/2017"
"Wolverhampton City Council","http://opendatacommunities.org/id/metropolitan-district-council/wolverhampton","AMAZON UK RETAIL AMAZO","10.45","EIP Locality 5","5999","Equipment - Purchase","10/04/2017"
"Wolverhampton City Council","http://opendatacommunities.org/id/metropolitan-district-council/wolverhampton","PP THEWAY YZ","39.00","EIP Locality 5","8398","Services - Supplies & Services to users","10/04/2017"
"Wolverhampton City Council","http://opendatacommunities.org/id/metropolitan-district-council/wolverhampton","LOYD MORR WILLENHALL","250.00","CIN/CP Social Work Unit - Area 6","6011","Client Allowances","10/04/2017"
"Wolverhampton City Council","http://opendatacommunities.org/id/metropolitan-district-council/wolverhampton","E01510300000000","100.00","Delivery & OCE Development","6011","Financial Assistance In Exceptional Circ","10/04/2017"
"Wolverhampton City Council","http://opendatacommunities.org/id/metropolitan-district-council/wolverhampton","Virgintrains.co.uk","-33.00","Scrutiny & Transparency","4112","Public Transport","10/04/2017"
"Wolverhampton City Council","http://opendatacommunities.org/id/metropolitan-district-council/wolverhampton","LODGE TYRE","175.00","Northicote Farm","5532","Equipment - R & M","10/04/2017"
"Wolverhampton City Council","http://opendatacommunities.org/id/metropolitan-district-council/wolverhampton","IKEA ONLINE","78.33","LAC Transitions Team","5719","Client Allowances","07/04/2017"
"Wolverhampton City Council","http://opendatacommunities.org/id/metropolitan-district-council/wolverhampton","HM PASSPORT OFFICE","72.50","LAC Transitions Team","9399","Client Allowances","07/04/2017"
"Wolverhampton City Council","http://opendatacommunities.org/id/metropolitan-district-council/wolverhampton","WOLVERHAMPTON CC","3.33","Headstart Phase 3","7523","Parking Fees","07/04/2017"
"Wolverhampton City Council","http://opendatacommunities.org/id/metropolitan-district-council/wolverhampton","AVERY KNIGHT & BOW","83.59","Queen St Townscape Heritage (HLF)","5251","Equipment - Purchase","07/04/2017"
"Wolverhampton City Council","http://opendatacommunities.org/id/metropolitan-district-council/wolverhampton","WWW.TELECARE.ORG.UK","400.00","Telecare","7399","Services - Professional Fees","07/04/2017"
"Wolverhampton City Council","http://opendatacommunities.org/id/metropolitan-district-council/wolverhampton","TESCO STORE 2836","6.00","Towers Outdoor Education Centre","5411","Provisions (Not for resale)","07/04/2017"
"Wolverhampton City Council","http://opendatacommunities.org/id/metropolitan-district-council/wolverhampton","HERON FOODS LTD","18.29","Ernest Bold Court","5499","Catering","07/04/2017"
"Wolverhampton City Council","http://opendatacommunities.org/id/metropolitan-district-council/wolverhampton","TESCO STORES (6741)","8.68","Head of Service - LAC","5411","Provisions (Not for resale)","07/04/2017"
"Wolverhampton City Council","http://opendatacommunities.org/id/metropolitan-district-council/wolverhampton","The Plastic Box Compan","42.46","Inclusion Support","5085","Equipment - Purchase","07/04/2017"
"Wolverhampton City Council","http://opendatacommunities.org/id/metropolitan-district-council/wolverhampton","COMARK INSTRUMENTS","138.90","Environmental Health - Pub Prot - Gen","5046","Equipment - Purchase","07/04/2017"
"Wolverhampton City Council","http://opendatacommunities.org/id/metropolitan-district-council/wolverhampton","PAYPAL  MERLINLAZER","194.95","Environmental Health - Pub Prot - Gen","7399","Equipment - Purchase","07/04/2017"
"Wolverhampton City Council","http://opendatacommunities.org/id/metropolitan-district-council/wolverhampton","TRADING STANDARDS INST","125.00","Environmental Health - Pub Prot - Gen","5965","Training Expenses","07/04/2017"
"Wolverhampton City Council","http://opendatacommunities.org/id/metropolitan-district-council/wolverhampton","AMAZON UK RETAIL AMAZO","59.98","Brick Wonders/Lego","5999","Equipment - Purchase","07/04/2017"
"Wolverhampton City Council","http://opendatacommunities.org/id/metropolitan-district-council/wolverhampton","PP NEEDFLYERS.CO.UK","32.00","Spring Touring Show 2017","7311","Marketing \ Non-staff advertising","07/04/2017"
"Wolverhampton City Council","http://opendatacommunities.org/id/metropolitan-district-council/wolverhampton","LIDL UK","21.89","CIN/CP S17 SW Unit - Area 7","5411","Provisions (Not for resale)","07/04/2017"
"Wolverhampton City Council","http://opendatacommunities.org/id/metropolitan-district-council/wolverhampton","MBL SEMINARS","60.00","Central Training","8299","Training Expenses","07/04/2017"
"Wolverhampton City Council","http://opendatacommunities.org/id/metropolitan-district-council/wolverhampton","WESTMINSTER FORUM","210.00","Member Training","7392","Training Expenses","07/04/2017"
"Wolverhampton City Council","http://opendatacommunities.org/id/metropolitan-district-council/wolverhampton","Amazon UK Marketplace","3.98","EIP Locality 3","5942","Books","07/04/2017"
"Wolverhampton City Council","http://opendatacommunities.org/id/metropolitan-district-council/wolverhampton","THE YORK HOTEL","166.67","CIN/CP Social Work Unit - Area 4","7011","Services - Supplies & Services to users","07/04/2017"
"Wolverhampton City Council","http://opendatacommunities.org/id/metropolitan-district-council/wolverhampton","B & Q 1243","5.00","LAC Transitions Team","5211","Client Allowances","07/04/2017"
"Wolverhampton City Council","http://opendatacommunities.org/id/metropolitan-district-council/wolverhampton","LOYD MORR WILLENHALL","250.00","CIN/CP S17 SW Unit - Area 6","6011","Financial Assistance In Exceptional Circ","07/04/2017"
"Wolverhampton City Council","http://opendatacommunities.org/id/metropolitan-district-council/wolverhampton","BRITISH A","147.99","Delivery & OCE Development","3005","Public Transport","07/04/2017"
"Wolverhampton City Council","http://opendatacommunities.org/id/metropolitan-district-council/wolverhampton","BILASH","176.79","Equalities","5085","Subsistence","07/04/2017"
"Wolverhampton City Council","http://opendatacommunities.org/id/metropolitan-district-council/wolverhampton","MAYFAIR CARPETS","300.00","LAC Transitions Team","5712","Client Allowances","07/04/2017"
"Wolverhampton City Council","http://opendatacommunities.org/id/metropolitan-district-council/wolverhampton","MAYFAIR CARPETS","220.00","LAC Transitions Team","5712","Client Allowances","07/04/2017"
"Wolverhampton City Council","http://opendatacommunities.org/id/metropolitan-district-council/wolverhampton","EUROPEAN HOTEL","45.00","Adoption and Residence Team & Allowances","7011","Services - Supplies & Services to users","07/04/2017"
"Wolverhampton City Council","http://opendatacommunities.org/id/metropolitan-district-council/wolverhampton","FACEBK  WYNR7CNHC2","16.96","Headstart Phase 3","7311","Marketing \ Non-staff advertising","07/04/2017"
"Wolverhampton City Council","http://opendatacommunities.org/id/metropolitan-district-council/wolverhampton","FACEBK  HHXZ6CJHC2","23.10","Headstart Phase 3","7311","Marketing \ Non-staff advertising","07/04/2017"
"Wolverhampton City Council","http://opendatacommunities.org/id/metropolitan-district-council/wolverhampton","Virgin Trains","5.90","Delivery & OCE Development","4112","Public Transport","07/04/2017"
"Wolverhampton City Council","http://opendatacommunities.org/id/metropolitan-district-council/wolverhampton","E01510300000000","100.00","Emergency Duty Team","6011","Financial Assistance In Exceptional Circ","07/04/2017"
"Wolverhampton City Council","http://opendatacommunities.org/id/metropolitan-district-council/wolverhampton","AMAZON UK RETAIL AMAZO","21.72","Language Studies Delivery Area","5999","Equipment - Purchase","07/04/2017"
"Wolverhampton City Council","http://opendatacommunities.org/id/metropolitan-district-council/wolverhampton","AMAZON UK RETAIL AMAZO","23.00","Legal Services","5999","Stationery","06/04/2017"
"Wolverhampton City Council","http://opendatacommunities.org/id/metropolitan-district-council/wolverhampton","Trainline","444.77","Legal Services","4112","Public Transport","06/04/2017"
"Wolverhampton City Council","http://opendatacommunities.org/id/metropolitan-district-council/wolverhampton","Trainline","116.99","Adoption and Residence Team & Allowances","4112","Public Transport","06/04/2017"
"Wolverhampton City Council","http://opendatacommunities.org/id/metropolitan-district-council/wolverhampton","Trainline","256.53","Delivery & OCE Development","4112","Public Transport","06/04/2017"
"Wolverhampton City Council","http://opendatacommunities.org/id/metropolitan-district-council/wolverhampton","IMM HEALTH SURCHARGE I","500.00","CIN/CP Social Work Unit - Area 3","9399","No Recourse to Public Funds","06/04/2017"
"Wolverhampton City Council","http://opendatacommunities.org/id/metropolitan-district-council/wolverhampton","EAST & WEST AID","125.00","CIN/CP Social Work Unit - Area 3","8398","Computing - Purchase of Hardware","06/04/2017"
"Wolverhampton City Council","http://opendatacommunities.org/id/metropolitan-district-council/wolverhampton","Virgin Trains","33.00","Scrutiny & Transparency","4112","Public Transport","06/04/2017"
"Wolverhampton City Council","http://opendatacommunities.org/id/metropolitan-district-council/wolverhampton","Virgin Trains","33.00","Scrutiny & Transparency","4112","Public Transport","06/04/2017"
"Wolverhampton City Council","http://opendatacommunities.org/id/metropolitan-district-council/wolverhampton","Amazon UK Marketplace","9.79","Global Budgets","5942","Books","06/04/2017"
"Wolverhampton City Council","http://opendatacommunities.org/id/metropolitan-district-council/wolverhampton","POST OFFICE COUNTER","378.50","LAC Team","9402","Comms - Postage","06/04/2017"
"Wolverhampton City Council","http://opendatacommunities.org/id/metropolitan-district-council/wolverhampton","Virgin Trains","12.90","Democratic Support","4112","Public Transport","06/04/2017"
"Wolverhampton City Council","http://opendatacommunities.org/id/metropolitan-district-council/wolverhampton","B&M RETAIL LTD","166.58","LAC Transitions Team","5310","Client Allowances","06/04/2017"
"Wolverhampton City Council","http://opendatacommunities.org/id/metropolitan-district-council/wolverhampton","SUITES AND BEDS","50.00","LAC Transitions Team","5712","Client Allowances","06/04/2017"
"Wolverhampton City Council","http://opendatacommunities.org/id/metropolitan-district-council/wolverhampton","MAYFAIR CARPETS","125.00","LAC Transitions Team","5712","Client Allowances","06/04/2017"
"Wolverhampton City Council","http://opendatacommunities.org/id/metropolitan-district-council/wolverhampton","Amazon EU","239.92","Brick Wonders/Lego","5969","Materials","06/04/2017"
"Wolverhampton City Council","http://opendatacommunities.org/id/metropolitan-district-council/wolverhampton","SAINSBURYS (2340)","20.65","Civic Centre Catering","5411","Provisions (Not for resale)","06/04/2017"
"Wolverhampton City Council","http://opendatacommunities.org/id/metropolitan-district-council/wolverhampton","WICKES","2.49","Education Catering - General Overheads","5211","Materials","06/04/2017"
"Wolverhampton City Council","http://opendatacommunities.org/id/metropolitan-district-council/wolverhampton","THE HOME OFFICE","308.00","CIN/CP S17 SW Unit - Area 7","9399","Services - Fees and Charges","06/04/2017"
"Wolverhampton City Council","http://opendatacommunities.org/id/metropolitan-district-council/wolverhampton","HM PASSPORT OFFICE","75.50","LAC Transitions Team","9399","Client Allowances","06/04/2017"
"Wolverhampton City Council","http://opendatacommunities.org/id/metropolitan-district-council/wolverhampton","Trainline","43.30","Youth Offending Team","4112","Public Transport","06/04/2017"
"Wolverhampton City Council","http://opendatacommunities.org/id/metropolitan-district-council/wolverhampton","WM MORRISONS","10.00","EIP Locality 6","5411","Provisions (Not for resale)","06/04/2017"
"Wolverhampton City Council","http://opendatacommunities.org/id/metropolitan-district-council/wolverhampton","REGISTRARS OFFICE","20.00","Adoption and Residence Team & Allowances","8299","Services - Fees and Charges","06/04/2017"
"Wolverhampton City Council","http://opendatacommunities.org/id/metropolitan-district-council/wolverhampton","WILKIN CHAPMAN","125.00","Central Training","8111","Training Expenses","06/04/2017"
"Wolverhampton City Council","http://opendatacommunities.org/id/metropolitan-district-council/wolverhampton","S B S LTD","45.00","Cycling Schemes - Bikeability","5551","Equipment - Purchase","06/04/2017"
"Wolverhampton City Council","http://opendatacommunities.org/id/metropolitan-district-council/wolverhampton","POST OFFICE COUNTER","7.25","Adoption and Residence Team & Allowances","9402","Comms - Postage","06/04/2017"
"Wolverhampton City Council","http://opendatacommunities.org/id/metropolitan-district-council/wolverhampton","Virgin Trains","483.60","Delivery & OCE Development","4112","Public Transport","06/04/2017"
"Wolverhampton City Council","http://opendatacommunities.org/id/metropolitan-district-council/wolverhampton","FACEBK MHQE2BJA82","4.13","Communications & Marketing - General","7311","Marketing \ Non-staff advertising","06/04/2017"
"Wolverhampton City Council","http://opendatacommunities.org/id/metropolitan-district-council/wolverhampton","FACEBK KHQE2BJA82","424.84","Communications & Marketing - General","7311","Marketing \ Non-staff advertising","06/04/2017"
"Wolverhampton City Council","http://opendatacommunities.org/id/metropolitan-district-council/wolverhampton","Amazon UK Marketplace","45.66","Wolverhampton Indoor and Open Market","5942","Books","06/04/2017"
"Wolverhampton City Council","http://opendatacommunities.org/id/metropolitan-district-council/wolverhampton","TIPPERS WOLVERHAMPTON","15.70","Hickman Avenue Depot","5072","R&M - Departmental planned (external)","06/04/2017"
"Wolverhampton City Council","http://opendatacommunities.org/id/metropolitan-district-council/wolverhampton","JOHNSTONES DEC CENTRE","14.87","Bilston Town Hall","5231","Equipment - Purchase","06/04/2017"
"Wolverhampton City Council","http://opendatacommunities.org/id/metropolitan-district-council/wolverhampton","CTT (WOLVERHAMPTON) LI","391.40","Head Start (Digital Strand)","4722","Public Transport","06/04/2017"
"Wolverhampton City Council","http://opendatacommunities.org/id/metropolitan-district-council/wolverhampton","WORLD NOMADS TRAVEL","114.26","Leonardo Da Vinci Project","6300","Services - Supplies & Services to users","06/04/2017"
"Wolverhampton City Council","http://opendatacommunities.org/id/metropolitan-district-council/wolverhampton","VERIFONE TAXI/PRIVATE","60.50","Leonardo Da Vinci Project","4121","Client Transport","06/04/2017"
"Wolverhampton City Council","http://opendatacommunities.org/id/metropolitan-district-council/wolverhampton","GOVERNMENT KNOWLEDGE L","330.00","LAC Education Team (LACE)","7399","Equipment - Purchase","06/04/2017"
"Wolverhampton City Council","http://opendatacommunities.org/id/metropolitan-district-council/wolverhampton","WWW.WMSPLC.CO.UK","36.88","Ernest Bold Court","5047","Equipment - R & M","05/04/2017"
"Wolverhampton City Council","http://opendatacommunities.org/id/metropolitan-district-council/wolverhampton","ASDA SUPERSTORE","116.75","Mayoral Expenses","5411","Hospitality","05/04/2017"
"Wolverhampton City Council","http://opendatacommunities.org/id/metropolitan-district-council/wolverhampton","WWW.ARGOS.CO.UK","209.99","EIP Locality 7","5310","Grant Payments","05/04/2017"
"Wolverhampton City Council","http://opendatacommunities.org/id/metropolitan-district-council/wolverhampton","WMCA","440.00","CIN/CP Social Work Unit - Area 3","9399","Client Transport","05/04/2017"
"Wolverhampton City Council","http://opendatacommunities.org/id/metropolitan-district-council/wolverhampton","HIGHFIELD HOUSE HO","285.00","CIN/CP Social Work Unit - Area 3","7011","No Recourse to Public Funds","05/04/2017"
"Wolverhampton City Council","http://opendatacommunities.org/id/metropolitan-district-council/wolverhampton","Virgin Trains","85.10","Members Expenses","4112","Public Transport","05/04/2017"
"Wolverhampton City Council","http://opendatacommunities.org/id/metropolitan-district-council/wolverhampton","THE RANGE","57.48","LAC Transitions Team","5311","Client Allowances","05/04/2017"
"Wolverhampton City Council","http://opendatacommunities.org/id/metropolitan-district-council/wolverhampton","ARGOS LTD","67.98","LAC Transitions Team","5310","Client Allowances","05/04/2017"
"Wolverhampton City Council","http://opendatacommunities.org/id/metropolitan-district-council/wolverhampton","BOOKWHEN","9.00","Craftplay","7372","Computing - Purchase of Software","05/04/2017"
"Wolverhampton City Council","http://opendatacommunities.org/id/metropolitan-district-council/wolverhampton","TESCO STORES 5194","202.75","Towers Outdoor Education Centre","5411","Provisions (Not for resale)","05/04/2017"
"Wolverhampton City Council","http://opendatacommunities.org/id/metropolitan-district-council/wolverhampton","WWW.STAPLES.CO.UK","11.60","Towers Outdoor Education Centre","5943","Stationery","05/04/2017"
"Wolverhampton City Council","http://opendatacommunities.org/id/metropolitan-district-council/wolverhampton","WWW.OFFICEFURNITUREONL","18.00","Learning Technologies","5712","Equipment - Purchase","05/04/2017"
"Wolverhampton City Council","http://opendatacommunities.org/id/metropolitan-district-council/wolverhampton","Amazon UK Marketplace","91.98","Learning Technologies","5942","Hospitality","05/04/2017"
"Wolverhampton City Council","http://opendatacommunities.org/id/metropolitan-district-council/wolverhampton","ASDA HOME SHOPPING","-0.09","Ernest Bold Court","5411","Provisions (Not for resale)","05/04/2017"
"Wolverhampton City Council","http://opendatacommunities.org/id/metropolitan-district-council/wolverhampton","ASDA HOME SHOPPING","-1.65","Ernest Bold Court","5411","Provisions (Not for resale)","05/04/2017"
"Wolverhampton City Council","http://opendatacommunities.org/id/metropolitan-district-council/wolverhampton","ASDA HOME SHOPPING","88.74","Ernest Bold Court","5411","Provisions (Not for resale)","05/04/2017"
"Wolverhampton City Council","http://opendatacommunities.org/id/metropolitan-district-council/wolverhampton","DUDLEY MBC  INTERN","50.60","Education Business Partnership","8999","Services - Professional Fees","05/04/2017"
"Wolverhampton City Council","http://opendatacommunities.org/id/metropolitan-district-council/wolverhampton","WWW.PAYOCS.CO.UK","42.63","Education Business Partnership","7349","Catering","05/04/2017"
"Wolverhampton City Council","http://opendatacommunities.org/id/metropolitan-district-council/wolverhampton","FINDEL ED LTD","57.95","Education Business Partnership","5969","Equipment - Purchase","05/04/2017"
"Wolverhampton City Council","http://opendatacommunities.org/id/metropolitan-district-council/wolverhampton","SAINSBURYS (2340)","38.70","Civic Centre Catering","5411","Provisions (Not for resale)","05/04/2017"
"Wolverhampton City Council","http://opendatacommunities.org/id/metropolitan-district-council/wolverhampton","TOOLSTATION LTD","32.68","Education Catering - General Overheads","5251","Materials","05/04/2017"
"Wolverhampton City Council","http://opendatacommunities.org/id/metropolitan-district-council/wolverhampton","SAINSBURYS 2040","11.30","Duke Street Bungalows","5411","Provisions (Not for resale)","05/04/2017"
"Wolverhampton City Council","http://opendatacommunities.org/id/metropolitan-district-council/wolverhampton","WILKIN CHAPMAN","45.00","Central Training","8111","Training Expenses","05/04/2017"
"Wolverhampton City Council","http://opendatacommunities.org/id/metropolitan-district-council/wolverhampton","WEST COAST TRAINS","14.20","Road Safety","4112","Public Transport","05/04/2017"
"Wolverhampton City Council","http://opendatacommunities.org/id/metropolitan-district-council/wolverhampton","Cross Country Trains","45.30","DA Care Purchasing (Spot Placements)","4112","Public Transport","05/04/2017"
"Wolverhampton City Council","http://opendatacommunities.org/id/metropolitan-district-council/wolverhampton","PARTS.HOTPOINT.CO.UK","36.48","Ernest Bold Court","5999","Equipment - Purchase","05/04/2017"
"Wolverhampton City Council","http://opendatacommunities.org/id/metropolitan-district-council/wolverhampton","TESCO - Seller_IST_1_2","399.98","EIP Locality 1","5999","Financial Assistance In Exceptional Circ","05/04/2017"
"Wolverhampton City Council","http://opendatacommunities.org/id/metropolitan-district-council/wolverhampton","VIMEO.COM","110.22","EIP Locality 1","5968","Subscriptions","05/04/2017"
"Wolverhampton City Council","http://opendatacommunities.org/id/metropolitan-district-council/wolverhampton","WEST MID TRAVEL","446.85","Community Enablement","4131","Public Transport","05/04/2017"
"Wolverhampton City Council","http://opendatacommunities.org/id/metropolitan-district-council/wolverhampton","B&M RETAIL","34.99","LAC Transitions Team","5310","Client Allowances","05/04/2017"
"Wolverhampton City Council","http://opendatacommunities.org/id/metropolitan-district-council/wolverhampton","HOME BARGAINS","3.27","LAC Transitions Team","5251","Client Allowances","05/04/2017"
"Wolverhampton City Council","http://opendatacommunities.org/id/metropolitan-district-council/wolverhampton","IKEA LIMITED","187.50","EIP Locality 8","5712","Equipment - Purchase","05/04/2017"
"Wolverhampton City Council","http://opendatacommunities.org/id/metropolitan-district-council/wolverhampton","NAMESCO","71.96","City Direct","4816","Computing - Purchase of Software","05/04/2017"
"Wolverhampton City Council","http://opendatacommunities.org/id/metropolitan-district-council/wolverhampton","LOVE2SHOP.CO.UK","203.50","Healthy Lifestyles Team","8641","Equipment - Purchase","05/04/2017"
"Wolverhampton City Council","http://opendatacommunities.org/id/metropolitan-district-council/wolverhampton","ARGOS LTD","41.66","B-Safe","5310","Furniture","05/04/2017"
"Wolverhampton City Council","http://opendatacommunities.org/id/metropolitan-district-council/wolverhampton","CHILLINGTON SELF STORA","89.76","LAC Transitions Team","4214","Client Allowances","05/04/2017"
"Wolverhampton City Council","http://opendatacommunities.org/id/metropolitan-district-council/wolverhampton","RYMAN","13.74","Equalities","5943","Stationery","05/04/2017"
"Wolverhampton City Council","http://opendatacommunities.org/id/metropolitan-district-council/wolverhampton","POST OFFICE COUNTER","23.40","CIN/CP S17 SW Unit - Area 3","9402","Comms - Postage","05/04/2017"
"Wolverhampton City Council","http://opendatacommunities.org/id/metropolitan-district-council/wolverhampton","POST OFFICE COUNTER","9.75","CIN/CP S17 SW Unit - Area 3","9402","Comms - Postage","05/04/2017"
"Wolverhampton City Council","http://opendatacommunities.org/id/metropolitan-district-council/wolverhampton","ASDA HOME SHOPPING","-3.51","Upper Pendeford Farm Childrens Home","5411","Provisions (Not for resale)","05/04/2017"
"Wolverhampton City Council","http://opendatacommunities.org/id/metropolitan-district-council/wolverhampton","ASDA HOME SHOPPING","308.20","Upper Pendeford Farm Childrens Home","5411","Provisions (Not for resale)","05/04/2017"
"Wolverhampton City Council","http://opendatacommunities.org/id/metropolitan-district-council/wolverhampton","ASDA SUPERSTORE","10.00","EIP Locality 5","5411","Provisions (Not for resale)","05/04/2017"
"Wolverhampton City Council","http://opendatacommunities.org/id/metropolitan-district-council/wolverhampton","LONDON TAXI JOURNE","6.60","Headstart Phase 3","4121","Client Transport","05/04/2017"
"Wolverhampton City Council","http://opendatacommunities.org/id/metropolitan-district-council/wolverhampton","PP SPOTTY CARS","18.47","Headstart Phase 3","4789","Client Transport","05/04/2017"
"Wolverhampton City Council","http://opendatacommunities.org/id/metropolitan-district-council/wolverhampton","NOMAD WEST COAST L","5.00","Headstart Phase 3","4816","Computing - Purchase of Software","05/04/2017"
"Wolverhampton City Council","http://opendatacommunities.org/id/metropolitan-district-council/wolverhampton","Amazon UK Marketplace","8.00","Wolverhampton Indoor and Open Market","5942","Books","05/04/2017"
"Wolverhampton City Council","http://opendatacommunities.org/id/metropolitan-district-council/wolverhampton","BRITANNIA","14.17","CIN/CP Social Work Unit - Area 2","7011","Section 17","05/04/2017"
"Wolverhampton City Council","http://opendatacommunities.org/id/metropolitan-district-council/wolverhampton","BRITANNIA","27.50","CIN/CP Social Work Unit - Area 2","7011","Section 17","05/04/2017"
"Wolverhampton City Council","http://opendatacommunities.org/id/metropolitan-district-council/wolverhampton","Trainline","83.84","CIN/CP Social Work Unit - Area 2","4112","Section 17","05/04/2017"
"Wolverhampton City Council","http://opendatacommunities.org/id/metropolitan-district-council/wolverhampton","Trainline","10.35","CIN/CP Social Work Unit - Area 2","4112","Section 17","05/04/2017"
"Wolverhampton City Council","http://opendatacommunities.org/id/metropolitan-district-council/wolverhampton","CARVER/WOLVERHAMPTON/L","62.32","Bilston Town Hall","5211","Equipment - Purchase","05/04/2017"
"Wolverhampton City Council","http://opendatacommunities.org/id/metropolitan-district-council/wolverhampton","WICKES","-55.05","Northicote Farm","5211","Materials","04/04/2017"
"Wolverhampton City Council","http://opendatacommunities.org/id/metropolitan-district-council/wolverhampton","WICKES","7.50","Northicote Farm","5211","Materials","04/04/2017"
"Wolverhampton City Council","http://opendatacommunities.org/id/metropolitan-district-council/wolverhampton","WICKES","98.36","Northicote Farm","5211","Materials","04/04/2017"
"Wolverhampton City Council","http://opendatacommunities.org/id/metropolitan-district-council/wolverhampton","WEST COAST TRAINS","6.33","Cemeteries","4112","Public Transport","04/04/2017"
"Wolverhampton City Council","http://opendatacommunities.org/id/metropolitan-district-council/wolverhampton","AMZ Jaques of London","-33.87","IMPACT","5999","Equipment - Purchase","04/04/2017"
"Wolverhampton City Council","http://opendatacommunities.org/id/metropolitan-district-council/wolverhampton","TFM FARM & COUNTRY SUP","21.38","Northicote Farm","5399","Materials","04/04/2017"
"Wolverhampton City Council","http://opendatacommunities.org/id/metropolitan-district-council/wolverhampton","HY-TEN WELDED MESH CO","152.00","Northicote Farm","1761","Equipment - R & M","04/04/2017"
"Wolverhampton City Council","http://opendatacommunities.org/id/metropolitan-district-council/wolverhampton","GREATER ANGLIA T/O","24.70","Managing Director","4112","Public Transport","04/04/2017"
"Wolverhampton City Council","http://opendatacommunities.org/id/metropolitan-district-council/wolverhampton","COSTA COFFEE","18.10","Managing Director","5814","Catering","04/04/2017"
"Wolverhampton City Council","http://opendatacommunities.org/id/metropolitan-district-council/wolverhampton","FACEBK 7CLNGCNAR2","457.30","Communications & Marketing - General","7311","Marketing \ Non-staff advertising","04/04/2017"
"Wolverhampton City Council","http://opendatacommunities.org/id/metropolitan-district-council/wolverhampton","FACEBK XN34TCSAR2","0.05","Communications & Marketing - General","7311","Marketing \ Non-staff advertising","04/04/2017"
"Wolverhampton City Council","http://opendatacommunities.org/id/metropolitan-district-council/wolverhampton","W M MORRISONS.COM","125.56","Discretionary Fund","5411","Materials","04/04/2017"
"Wolverhampton City Council","http://opendatacommunities.org/id/metropolitan-district-council/wolverhampton","ASDA GEORGE COM LEEDS","48.75","CIN/CP S17 SW Unit - Area 5","5411","Provisions (Not for resale)","04/04/2017"
"Wolverhampton City Council","http://opendatacommunities.org/id/metropolitan-district-council/wolverhampton","POUNDLAND LTD 1463","10.00","Global Budgets","5310","Stationery","04/04/2017"
"Wolverhampton City Council","http://opendatacommunities.org/id/metropolitan-district-council/wolverhampton","ASDA SUPERSTORE","35.29","Civic Centre Catering","5411","Provisions (Not for resale)","04/04/2017"
"Wolverhampton City Council","http://opendatacommunities.org/id/metropolitan-district-council/wolverhampton","Trainline","275.86","Legal Services","4112","Public Transport","04/04/2017"
"Wolverhampton City Council","http://opendatacommunities.org/id/metropolitan-district-council/wolverhampton","G & M HALE (SUNDRIES)","33.50","Creative Studies Delivery Area","5992","Materials for resale","04/04/2017"
"Wolverhampton City Council","http://opendatacommunities.org/id/metropolitan-district-council/wolverhampton","G & M HALE (SUNDRIES)","39.20","Discretionary Fund","5992","Materials","04/04/2017"
"Wolverhampton City Council","http://opendatacommunities.org/id/metropolitan-district-council/wolverhampton","G & M HALE LTD","47.25","Creative Studies Delivery Area","5992","Materials for resale","04/04/2017"
"Wolverhampton City Council","http://opendatacommunities.org/id/metropolitan-district-council/wolverhampton","G & M HALE LTD","124.80","Discretionary Fund","5992","Equipment - Purchase","04/04/2017"
"Wolverhampton City Council","http://opendatacommunities.org/id/metropolitan-district-council/wolverhampton","SWIFT BUSINESS SOLUTIO","72.90","Revenues","5943","Stationery","04/04/2017"
"Wolverhampton City Council","http://opendatacommunities.org/id/metropolitan-district-council/wolverhampton","MARKS&SPENCER PLC SACA","15.00","Revenues","5411","Provisions (Not for resale)","04/04/2017"
"Wolverhampton City Council","http://opendatacommunities.org/id/metropolitan-district-council/wolverhampton","CT WOLVERHAMPTON","90.00","LAC Transitions Team","8398","Client Allowances","04/04/2017"
"Wolverhampton City Council","http://opendatacommunities.org/id/metropolitan-district-council/wolverhampton","Virgin Trains","237.00","Information Governance Team","4112","Public Transport","04/04/2017"
"Wolverhampton City Council","http://opendatacommunities.org/id/metropolitan-district-council/wolverhampton","GOURMET COFFEE BAR AND","5.80","Headstart Phase 3","5499","Subsistence","04/04/2017"
"Wolverhampton City Council","http://opendatacommunities.org/id/metropolitan-district-council/wolverhampton","CITYFLEET/COMCAB","9.02","Headstart Phase 3","4121","Client Transport","04/04/2017"
"Wolverhampton City Council","http://opendatacommunities.org/id/metropolitan-district-council/wolverhampton","Virgin Trains","194.30","Strategic Asset Management - General","4112","Public Transport","04/04/2017"
"Wolverhampton City Council","http://opendatacommunities.org/id/metropolitan-district-council/wolverhampton","WILKO RETAIL LIMIT","3.33","Connexions Contract","5722","Provisions (Not for resale)","04/04/2017"
"Wolverhampton City Council","http://opendatacommunities.org/id/metropolitan-district-council/wolverhampton","SAINSBURYS (2340)","13.25","Connexions Contract","5411","Provisions (Not for resale)","04/04/2017"
"Wolverhampton City Council","http://opendatacommunities.org/id/metropolitan-district-council/wolverhampton","POST OFFICE COUNTER","32.50","EIP Locality 1","9402","Comms - Postage","04/04/2017"
"Wolverhampton City Council","http://opendatacommunities.org/id/metropolitan-district-council/wolverhampton","ARGOS LTD","181.63","LAC Transitions Team","5310","Client Allowances","04/04/2017"
"Wolverhampton City Council","http://opendatacommunities.org/id/metropolitan-district-council/wolverhampton","ROYAL CARPETS","149.99","LAC Transitions Team","5713","Client Allowances","04/04/2017"
"Wolverhampton City Council","http://opendatacommunities.org/id/metropolitan-district-council/wolverhampton","SPAR SIOP TANDDERWEN","483.48","Towers Outdoor Education Centre","5411","Provisions (Not for resale)","04/04/2017"
"Wolverhampton City Council","http://opendatacommunities.org/id/metropolitan-district-council/wolverhampton","Amazon UK Marketplace","56.23","Towers Outdoor Education Centre","5942","Equipment - Purchase","04/04/2017"
"Wolverhampton City Council","http://opendatacommunities.org/id/metropolitan-district-council/wolverhampton","4IMPRINT","372.95","Technical Support","5969","Equipment - Purchase","04/04/2017"
"Wolverhampton City Council","http://opendatacommunities.org/id/metropolitan-district-council/wolverhampton","Amazon UK Marketplace","45.99","Learning Technologies","5942","Hospitality","04/04/2017"
"Wolverhampton City Council","http://opendatacommunities.org/id/metropolitan-district-council/wolverhampton","AMAZON UK RETAIL AMAZO","19.98","Language Studies Delivery Area","5999","Equipment - Purchase","03/04/2017"
"Wolverhampton City Council","http://opendatacommunities.org/id/metropolitan-district-council/wolverhampton","AMAZON UK RETAIL AMAZO","81.28","Language Studies Delivery Area","5999","Equipment - Purchase","03/04/2017"
"Wolverhampton City Council","http://opendatacommunities.org/id/metropolitan-district-council/wolverhampton","WWW.LINDY.CO.UK","192.45","ICT Services","7372","Computing - Purchase of Software","03/04/2017"
"Wolverhampton City Council","http://opendatacommunities.org/id/metropolitan-district-council/wolverhampton","ASDA SUPERSTORE","39.46","Youth Offending Team","5411","Provisions (Not for resale)","03/04/2017"
"Wolverhampton City Council","http://opendatacommunities.org/id/metropolitan-district-council/wolverhampton","Amazon UK Marketplace","24.99","Strategic Director Place","5942","Equipment - Purchase","03/04/2017"
"Wolverhampton City Council","http://opendatacommunities.org/id/metropolitan-district-council/wolverhampton","GOOGLE  SVCSAPPS_wolve","3.30","Civic Halls Non Direct Management A/C","5968","Subscriptions","03/04/2017"
"Wolverhampton City Council","http://opendatacommunities.org/id/metropolitan-district-council/wolverhampton","WWW.AAWRISTBANDS.CO.UK","290.00","Brick Wonders/Lego","5699","Equipment - Purchase","03/04/2017"
"Wolverhampton City Council","http://opendatacommunities.org/id/metropolitan-district-council/wolverhampton","WWW.MAPLIN.CO.UK","41.66","Art Gallery","5732","Equipment - Purchase","03/04/2017"
"Wolverhampton City Council","http://opendatacommunities.org/id/metropolitan-district-council/wolverhampton","PRINTCARRIER.COM","52.00","The Little Civic","2741","Marketing \ Non-staff advertising","03/04/2017"
"Wolverhampton City Council","http://opendatacommunities.org/id/metropolitan-district-council/wolverhampton","PRINTCARRIER.COM","39.40","The Little Civic","2741","Marketing \ Non-staff advertising","03/04/2017"
"Wolverhampton City Council","http://opendatacommunities.org/id/metropolitan-district-council/wolverhampton","FACEBK BA2BABSE92","307.00","Audience Development","7311","Marketing \ Non-staff advertising","03/04/2017"
"Wolverhampton City Council","http://opendatacommunities.org/id/metropolitan-district-council/wolverhampton","WELDTITE PRODUCTS LTD","834.20","Travelwise","5940","Equipment - Purchase","03/04/2017"
"Wolverhampton City Council","http://opendatacommunities.org/id/metropolitan-district-council/wolverhampton","WMCA","-5.51","Travel Scratch Cards & Rail Warrants","4112","Public Transport","03/04/2017"
"Wolverhampton City Council","http://opendatacommunities.org/id/metropolitan-district-council/wolverhampton","WMCA","-21.01","Travel Scratch Cards & Rail Warrants","4112","Public Transport","03/04/2017"
"Wolverhampton City Council","http://opendatacommunities.org/id/metropolitan-district-council/wolverhampton","MILLERS JEWELLERS","450.00","Mayoral Expenses","5944","Gratuities","03/04/2017"
"Wolverhampton City Council","http://opendatacommunities.org/id/metropolitan-district-council/wolverhampton","CAPITA BUSINESS SERVS","480.00","School Improvement","9399","Services - Fees and Charges","03/04/2017"
"Wolverhampton City Council","http://opendatacommunities.org/id/metropolitan-district-council/wolverhampton","MAKENEY HALL HOTEL","52.50","Mayoral Expenses","7011","Accommodation Costs","03/04/2017"
"Wolverhampton City Council","http://opendatacommunities.org/id/metropolitan-district-council/wolverhampton","ASDA HOME SHOPPING","49.87","EIP Locality 5","5411","Financial Assistance In Exceptional Circ","03/04/2017"
"Wolverhampton City Council","http://opendatacommunities.org/id/metropolitan-district-council/wolverhampton","BARCLAYS BANK PLC","250.00","CIN/CP S17 SW Unit - Area 6","6011","Financial Assistance In Exceptional Circ","03/04/2017"
"Wolverhampton City Council","http://opendatacommunities.org/id/metropolitan-district-council/wolverhampton","WWW.SOLACE.ORG.UK","495.00","Delivery & OCE Development","8699","Subscriptions","03/04/2017"
"Wolverhampton City Council","http://opendatacommunities.org/id/metropolitan-district-council/wolverhampton","HOVER","16.50","Headstart Phase 3","7372","Computing - Purchase of Software","03/04/2017"
"Wolverhampton City Council","http://opendatacommunities.org/id/metropolitan-district-council/wolverhampton","PREMIER INN","1014.93","Strategic ICTS (ICT Serv Budget)","3811","Conference Expenses","03/04/2017"
"Wolverhampton City Council","http://opendatacommunities.org/id/metropolitan-district-council/wolverhampton","VUE CISCO EXAM AT VUE","243.78","Strategic ICTS (ICT Serv Budget)","8299","Training Expenses","03/04/2017"
"Wolverhampton City Council","http://opendatacommunities.org/id/metropolitan-district-council/wolverhampton","Amazon EU","89.67","Strategic ICTS (ICT Serv Budget)","5969","Equipment - Purchase","03/04/2017"
"Wolverhampton City Council","http://opendatacommunities.org/id/metropolitan-district-council/wolverhampton","Trainline","78.23","LAC Transitions Team","4112","Client Allowances","03/04/2017"
"Wolverhampton City Council","http://opendatacommunities.org/id/metropolitan-district-council/wolverhampton","FACEBK 7W9LTCAAR2","43.27","Communications & Marketing - General","7311","Marketing \ Non-staff advertising","03/04/2017"
"Wolverhampton City Council","http://opendatacommunities.org/id/metropolitan-district-council/wolverhampton","FACEBK 3HFLUAAA82","110.90","Communications & Marketing - General","7311","Marketing \ Non-staff advertising","03/04/2017"
"Wolverhampton City Council","http://opendatacommunities.org/id/metropolitan-district-council/wolverhampton","FACEBK SF4LGCNAR2","4.91","Communications & Marketing - General","7311","Marketing \ Non-staff advertising","03/04/2017"
"Wolverhampton City Council","http://opendatacommunities.org/id/metropolitan-district-council/wolverhampton","FACEBK NF4LGCNAR2","59.95","Public Health - Children 5 - 19","7311","Marketing \ Non-staff advertising","03/04/2017"
"Wolverhampton City Council","http://opendatacommunities.org/id/metropolitan-district-council/wolverhampton","AMAZON UK RETAIL AMAZO","43.77","Language Studies Delivery Area","5999","Equipment - Purchase","03/04/2017"
"Wolverhampton City Council","http://opendatacommunities.org/id/metropolitan-district-council/wolverhampton","Amazon EU","180.86","Language Studies Delivery Area","5969","Equipment - Purchase","03/04/2017"
"Wolverhampton City Council","http://opendatacommunities.org/id/metropolitan-district-council/wolverhampton","Amazon UK Marketplace","118.06","Language Studies Delivery Area","5942","Equipment - Purchase","03/04/2017"
"Wolverhampton City Council","http://opendatacommunities.org/id/metropolitan-district-council/wolverhampton","Amazon UK Marketplace","106.26","Language Studies Delivery Area","5942","Books","03/04/2017"
"Wolverhampton City Council","http://opendatacommunities.org/id/metropolitan-district-council/wolverhampton","WWW.ARGOS.CO.UK","374.11","Headstart Phase 3","5310","Furniture","03/04/2017"
"Wolverhampton City Council","http://opendatacommunities.org/id/metropolitan-district-council/wolverhampton","HMCOURTS-SERVICE.G","-150.00","Private Sector Housing","9222","Services - Fees and Charges","03/04/2017"
"Wolverhampton City Council","http://opendatacommunities.org/id/metropolitan-district-council/wolverhampton","AMAZON UK RETAIL AMAZO","19.81","EIP Locality 1","5999","Equipment - Purchase","03/04/2017"
"Wolverhampton City Council","http://opendatacommunities.org/id/metropolitan-district-council/wolverhampton","THE RANGE","76.20","LAC Transitions Team","5311","Client Allowances","03/04/2017"
"Wolverhampton City Council","http://opendatacommunities.org/id/metropolitan-district-council/wolverhampton","WWW.STAPLES.CO.UK","33.32","Towers Outdoor Education Centre","5943","Stationery","03/04/2017"
"Wolverhampton City Council","http://opendatacommunities.org/id/metropolitan-district-council/wolverhampton","1&1 INTERNET LIMITED","9.99","Learning Technologies","4816","Computing - Purchase of Software","03/04/2017"
"Wolverhampton City Council","http://opendatacommunities.org/id/metropolitan-district-council/wolverhampton","WWW.YOURPRODUCTSBR","374.92","Technical Support","5943","Stationery","03/04/2017"
"Wolverhampton City Council","http://opendatacommunities.org/id/metropolitan-district-council/wolverhampton","Amazon EU","12.84","Global Budgets","5969","Books","03/04/2017"
"Wolverhampton City Council","http://opendatacommunities.org/id/metropolitan-district-council/wolverhampton","Amazon UK Marketplace","10.71","Global Budgets","5942","Books","03/04/2017"
"Wolverhampton City Council","http://opendatacommunities.org/id/metropolitan-district-council/wolverhampton","ASDA HOME SHOPPING","-2.31","Ernest Bold Court","5411","Provisions (Not for resale)","03/04/2017"
"Wolverhampton City Council","http://opendatacommunities.org/id/metropolitan-district-council/wolverhampton","ASDA HOME SHOPPING","98.88","Ernest Bold Court","5411","Provisions (Not for resale)","03/04/2017"
